{"text_format":"1","workbook":"xlsx","n_sheets":9,"sheets":["Ficha Estandar","1.Demanda","2.Caracteristicas de embarcader","3.Costos","4. Evaluación C-E","1.1 FORMATO ENCUESTAS PASAJ","0. Tráfico","Hoja9","Hoja10"],"not_rendered":{"charts":1,"images":24,"macros":1,"external_links":2,"defined_names":231,"comments":1,"pivot_tables":0},"unopened":[],"bounds":{"document_bytes":16777216,"sheet_cells":100000,"rows_first":2000,"rows_last":500,"rows_between":2000,"halvings":0,"cell_chars":16384,"cell_head_chars":4096},"cells_cut":0,"cells_raw":0,"read":"whole","date_system":"1900"}

{"sheet":"Ficha Estandar","index":0,"n_rows":362,"n_cols":29,"rows_kept":362,"cut":false,"hidden":false,"merged":[[165,23,166,23],[165,24,166,24],[165,1,166,3],[165,14,166,14],[165,15,166,15],[165,16,166,16],[165,17,166,17],[165,18,166,18],[165,19,166,19],[165,20,166,20],[165,21,166,21],[165,22,166,22],[129,4,129,5],[130,4,130,5],[130,6,130,7],[133,8,133,9],[142,2,143,13],[142,1,143,1],[144,1,145,1],[144,2,145,13],[172,1,173,3],[172,6,173,6],[172,7,173,7],[172,8,173,8],[172,9,173,9],[172,10,173,10],[172,11,173,11],[165,4,166,4],[165,5,166,5],[165,6,166,6],[165,7,166,7],[165,8,166,8],[165,9,166,9],[165,10,166,10],[165,11,166,11],[148,1,148,13],[124,2,124,8],[88,5,88,12],[90,2,91,4],[87,5,87,12],[89,5,89,12],[48,5,48,6],[86,2,86,4],[86,5,86,12],[90,5,90,12],[69,1,69,14],[91,5,91,12],[111,1,111,8],[94,5,94,12],[73,1,73,5],[76,2,77,5],[78,2,79,5],[58,2,67,8],[97,5,97,12],[95,5,95,12],[96,5,96,12],[92,2,92,4],[94,2,95,4],[104,3,105,4],[101,1,101,3],[41,4,41,9],[41,1,41,3],[42,1,42,3],[117,6,117,8],[118,6,118,8],[112,1,114,8],[115,5,115,8],[116,6,116,8],[115,1,116,3],[115,4,116,4],[119,1,119,3],[119,6,119,8],[129,8,129,9],[129,6,129,7],[29,6,29,9],[31,6,31,9],[45,5,45,6],[45,3,45,4],[47,5,47,6],[87,2,89,4],[76,1,77,1],[78,1,79,1],[46,5,46,6],[46,7,46,9],[47,3,47,4],[49,5,49,6],[49,7,49,9],[47,7,47,9],[49,3,49,4],[84,1,84,13],[83,1,83,13],[48,7,48,9],[45,7,45,9],[49,1,49,2],[122,2,122,8],[123,2,123,8],[46,3,46,4],[48,1,48,2],[48,3,48,4],[42,4,42,9],[46,1,46,2],[1,1,1,2],[0,1,0,2],[10,1,10,14],[14,5,14,12],[16,5,16,12],[13,5,13,12],[23,5,23,12],[27,2,27,12],[3,3,6,10],[19,2,19,12],[31,12,31,14],[33,6,33,9],[35,6,35,9],[35,12,35,14],[47,1,47,2],[39,1,39,3],[40,1,40,3],[39,4,39,9],[40,4,40,9],[183,15,190,15],[185,1,185,3],[136,1,136,2],[136,8,136,9],[131,1,131,2],[136,4,136,5],[136,6,136,7],[132,4,132,5],[164,1,164,3],[134,10,134,11],[133,1,133,2],[134,1,134,2],[133,4,133,5],[134,4,134,5],[141,2,141,13],[165,12,166,12],[165,13,166,13],[172,4,173,4],[172,5,173,5],[167,1,167,3],[135,8,135,9],[135,4,135,5],[135,6,135,7],[129,10,129,11],[96,2,97,4],[93,5,93,12],[117,1,117,3],[118,1,118,3],[93,2,93,4],[329,2,329,5],[329,6,329,7],[324,4,324,10],[325,4,325,10],[323,4,323,10],[222,2,222,3],[288,5,288,6],[289,5,289,6],[317,4,317,10],[306,3,306,4],[306,5,306,12],[304,1,304,2],[305,1,305,2],[288,1,290,2],[288,3,288,4],[129,1,129,2],[135,10,135,11],[135,1,135,2],[322,4,322,10],[151,1,151,13],[153,1,153,14],[315,4,315,10],[316,4,316,10],[304,5,304,12],[307,1,307,2],[223,2,223,3],[195,1,195,4],[196,1,196,4],[244,1,244,3],[276,1,277,2],[278,1,279,1],[280,1,281,1],[296,1,296,12],[321,4,321,10],[172,12,173,12],[172,13,173,13],[172,14,173,14],[174,1,174,3],[319,4,319,10],[320,4,320,10],[308,5,308,12],[307,3,307,4],[305,5,305,12],[307,5,307,12],[216,5,216,6],[223,1,243,1],[252,1,272,1],[251,2,251,3],[252,2,252,3],[221,5,221,14],[289,3,289,4],[276,3,276,12],[287,1,287,2],[287,5,287,6],[287,3,287,4],[236,2,236,3],[237,2,237,3],[238,2,238,3],[239,2,239,3],[240,2,240,3],[241,2,241,3],[242,2,242,3],[243,2,243,3],[253,2,253,3],[254,2,254,3],[318,4,318,10],[314,1,314,10],[212,1,212,4],[292,1,292,9],[308,1,308,2],[308,3,308,4],[304,3,304,4],[306,1,306,2],[305,3,305,4],[302,1,302,8],[250,5,250,14],[214,1,214,4],[215,1,215,4],[224,2,224,3],[225,2,225,3],[226,2,226,3],[227,2,227,3],[228,2,228,3],[229,2,229,3],[230,2,230,3],[231,2,231,3],[232,2,232,3],[234,2,234,3],[235,2,235,3],[357,1,358,2],[342,1,344,1],[342,4,342,5],[343,4,343,5],[344,4,344,5],[345,1,345,8],[330,2,330,5],[331,2,331,5],[334,2,334,5],[333,2,333,5],[339,1,341,1],[339,4,339,5],[340,4,340,5],[341,4,341,5],[330,6,330,7],[338,4,338,5],[332,6,332,7],[349,1,350,13],[331,6,331,7],[334,6,334,7],[332,2,332,5],[354,1,356,2],[357,6,357,8],[125,2,125,8],[282,1,283,1],[213,5,213,6],[179,1,179,3],[136,10,136,11],[171,1,171,3],[130,8,130,9],[131,10,131,11],[130,10,130,11],[131,6,131,7],[131,4,131,5],[130,1,130,2],[133,6,133,7],[134,8,134,9],[134,6,134,7],[133,10,133,11],[131,8,131,9],[132,1,132,2],[132,8,132,9],[132,6,132,7],[132,10,132,11],[194,1,194,4],[220,1,220,2],[216,1,216,4],[194,5,194,6],[213,1,213,4],[212,5,212,6],[180,10,181,10],[180,11,181,11],[180,12,181,12],[180,13,181,13],[180,14,181,14],[180,1,181,3],[182,1,182,3],[195,5,195,6],[196,5,196,6],[193,5,193,6],[193,1,193,4],[180,4,181,4],[180,5,181,5],[180,6,181,6],[180,7,181,7],[180,8,181,8],[180,9,181,9],[188,1,188,13],[197,1,197,4],[198,1,198,4],[199,1,199,4],[201,1,201,4],[202,1,202,4],[203,1,203,4],[210,1,210,4],[211,1,211,4],[200,1,200,4],[204,1,204,4],[205,1,205,4],[206,1,206,4],[207,1,207,4],[208,1,208,4],[209,1,209,4],[255,2,255,3],[256,2,256,3],[257,2,257,3],[258,2,258,3],[290,8,290,9],[290,5,290,6],[269,2,269,3],[270,2,270,3],[271,2,271,3],[272,2,272,3],[259,2,259,3],[260,2,260,3],[261,2,261,3],[263,2,263,3],[264,2,264,3],[265,2,265,3],[266,2,266,3],[267,2,267,3],[268,2,268,3]]}
[null,"FECHA DE REGISTRO:"]
[null,{"$f":"NOW()","v":"2018-11-19T17:02:21.600"}]
[]
[]
[]
[]
[]
[]
[]
[]
[null,"I.  DATOS GENERALES"]
[]
[null,"1. ARTICULACIÓN CON LA PROGRAMACIÓN MULTIANUAL DE INVERSIONES (PMI)"]
[]
[null,"1.1 Servicios públicos con brecha identificada y priorizada:",null,null,null,"Servicio Portuario Fluvial"]
[]
[null,"1.2 Indicador de producto asociado a la brecha de servicios:",null,null,null,"% de Terminales Portuarios Fluviales Planificados no Implementados"]
[]
[null,"1.3 Definición del servicio público o de la cartera de servicios"]
[null,null,"Se refiere al componente de infraestructura dentro del servicio de transporte de vías navegables, que comprende la provisión de puertos fluviales para el intercambio de carga y/o atención de pasajeros. "]
[]
[null,"2. NOMBRE DEL PROYECTO "]
[]
[null,"2.1 Naturaleza de intervención",null,null,null,"Mejoramiento",null,null,null,null,null,null,null,null,null,"Creación"]
[null,null,null,null,null,null,null,null,null,null,null,null,null,null,null,"Mejoramiento"]
[null,"2.2 Enunciado del nombre del proyecto",null,null,null,null,null,null,null,null,null,null,null,null,null,"Recuperación",null,null,null,null,null,null,null,null,null,null,null,null,{"$f":"CONCATENATE( F24,\" del \",B74,\" en el Río \",G55,\", del Distrito de\",E55,\", de la Provincia de \",D55,\", del Departamento de \",C55)","v":"Mejoramiento del  en el Río , del Distrito de, de la Provincia de , del Departamento de "}]
[null,null,null,null,null,null,null,null,null,null,null,null,null,null,null,"Ampliación"]
[null,null,{"$f":"CONCATENATE(F24, \"del servicio portuario fluvial (embarcadero fluvial). En el distrito de \",E55, \"en el rio \", G55, \"Provincia de \", D55, \"Departamento de \", C55)","v":"Mejoramientodel servicio portuario fluvial (embarcadero fluvial). En el distrito de en el rio Provincia de Departamento de "}]
[]
[null,"2.3.¿El proyecto pertenece a un Programa de Inversión?"]
[]
[null,"En caso afirmativo, poner nombre del Programa:",null,null,null,null,null,null,null,null,null,"Cod. Prog."]
[]
[null,"2.4.¿El proyecto pertenece a un Conglomerado?"]
[]
[null,"En caso afirmativo, poner nombre del Conglomerado",null,null,null,null,null,null,null,null,null,"Cod. Congl."]
[]
[null,"3. RESPONSABILIDAD FUNCIONAL (Según Anexo Nº 07 – Resolución Ministerial N° 035-2018-EF/15 )"]
[]
[null,"FUNCIÓN",null,null,"015 TRANSPORTE",null,null,null,null,null,null,null,null,null,null,"0071 PUERTOS Y TERMINALES FLUVIALES Y LACUSTRES"]
[null,"DIVISION FUNCIONAL",null,null,"035 TRANSPORTE HIDROVIARIO",null,null,null,null,null,null,null,null,null,null,"0072 : CONTROL Y SEGURIDAD DEL TRAFICO HIDROVIARIO  "]
[null,"GRUPO FUNCIONAL",null,null,"0071 PUERTOS Y TERMINALES FLUVIALES Y LACUSTRES"]
[null,"SECTOR RESPONSABLE",null,null,"TRANSPORTES Y COMUNICACIONES"]
[]
[null,"4. INSTITUCIONALIDAD"]
[null,null,null,"Entidad ",null,"Órgano Responsable",null,"Persona Responsable"]
[null,"OFICINA DE PROGRAMACIÓN MULTIANUAL DE INVERSIONES (OPMI)"]
[null,"UNIDAD FORMULADORA (UF)"]
[null,"UNIDAD EJECUTORA DE INVERSIONES (UEI)"]
[null,"UNIDAD EJECUTORA PRESUPUESTAL (UEP)"]
[]
[null,"5. UBICACIÓN GEOGRÁFICA DEL EMBARCADERO"]
[]
[null,"N°","Departamento","Provincia","Distrito","Localidad","Río","Ubigeo*"]
[null,1]
[null,2]
[null,"* Especificar si el Ubigeo es a nivel de Departamento, Provincia, Distrito y/o Localidad (opcional)"]
[]
[null,null,"Agregar un mapa con la localización del embarcadero"]
[]
[]
[]
[]
[]
[]
[]
[]
[]
[]
[null,"II.  IDENTIFICACIÓN"]
[]
[null,"6. UNIDAD PRODUCTORA DE SERVICIOS"]
[]
[]
[]
[null,"Componentes del bien o servicio:"]
[null,"Zona Acuática"]
[]
[null,"Zona Terrestre"]
[]
[]
[null,"7. PROBLEMA CENTRAL, CAUSAS Y EFECTOS"]
[]
[null,"Descripción del problema central"]
[]
[]
[null,null,"Causas directas",null,null,"Causas Indirectas"]
[]
[]
[]
[]
[]
[null,null,"* Para embarcaderos fluviales existentes"]
[null,null,"Efectos directos",null,null,"Efectos Indirectos"]
[]
[]
[]
[]
[]
[null,"8. POBLACIÓN DEL ÁREA DE INFLUENCIA O BENEFICIADA "]
[]
[null,"Población beneficiaria directa"]
[]
[null,"Cantidad"]
[null,"Fuente de información",null,"INEI"]
[]
[]
[null,"9. DEFINICION DE LOS OBJETIVOS DEL PROYECTO"]
[]
[null,"9.1. Objetivo"]
[]
[null,"Descripción del Objetivo central"]
[]
[]
[]
[null,"Principales Indicadores del Objetivo (máximo 3)",null,null,"Unidad de medida","Meta"]
[null,null,null,null,null,"Magnitud","Fuente de verificación"]
[]
[]
[]
[]
[null,"9.2. Medios fundamentales"]
[null,"N°","Medios fundamentales"]
[null,1]
[null,2]
[null,3]
[]
[null,"10. ANÁLISIS DE INVOLUCRADOS"]
[]
[null,"Involucrado",null,"Ámbito del participante ","Entidad a la que pertenece",null,"Posición (Cooperante, Beneficiario, Oponente, Perjudicado)",null,"Intereses",null,"Contribución",null,null,null,null,"Nacional","Cooperante"]
[null,null,null,null,null,null,null,null,null,null,null,null,null,null,null,"Regional ","Beneficiario"]
[null,null,null,null,null,null,null,null,null,null,null,null,null,null,null,"Local","Oponente"]
[null,null,null,null,null,null,null,null,null,null,null,null,null,null,null,"Otros","Perjudicado"]
[]
[]
[]
[]
[]
[]
[null,"11. DESCRIPCIÓN DE LAS ALTERNATIVAS DE SOLUCIÓN "]
[]
[null,"Alternativa (*)","Descripción"]
[null,"Alternativa de Solución "]
[]
[]
[]
[null,"(*): La alternativa de solución deberá considerar un enfoque sostenible ante cambios climáticos y gestión de desastres"]
[null,"NOTA: De evidenciarse solo una alternativa de solución, el formulador deberá sustentar las razones."]
[]
[null,"12. REQUERIMIENTOS  TÉCNICOS, REGULATORIOS Y/O NORMATIVOS"]
[]
[]
[]
[null,"III.  FORMULACIÓN Y EVALUACIÓN"]
[]
[null,"13. HORIZONTE DE EVALUACIÓN"]
[]
[null,"Número de años del horizonte de evaluación",null,null,null,10,null,null,null,null,null,null,null,null,null,10]
[null,null,null,null,null,null,null,null,null,null,null,null,null,null,null,20]
[null,"14. ESTUDIO DE MERCADO DEL SERVICIO PÚBLICO"]
[]
[]
[null,"14.1 Análisis de la demanda (*)"]
[]
[null,"Descripción",null,null,"Unidad de Medida","Año 1","Año 2","Año 3","Año 4","Año 5","Año 6","Año 7","Año 8","Año 9","Año 10"]
[null,{"$f":"+B74","v":0},null,null,"Pas/año",{"$f":"+'1.Demanda'!C152","v":0},{"$f":"+'1.Demanda'!C153","v":0},{"$f":"+'1.Demanda'!C154","v":0},{"$f":"+'1.Demanda'!C155","v":0},{"$f":"+'1.Demanda'!C156","v":0},{"$f":"+'1.Demanda'!C157","v":0},{"$f":"+'1.Demanda'!C158","v":0},{"$f":"+'1.Demanda'!C159","v":0},{"$f":"+'1.Demanda'!C160","v":0},{"$f":"+'1.Demanda'!C161","v":0},{"$f":"+'1.Demanda'!M152","v":0},{"$f":"+'1.Demanda'!N152","v":0},{"$f":"+'1.Demanda'!#REF!","v":{"$error":"#REF!"}},{"$f":"+'1.Demanda'!#REF!","v":{"$error":"#REF!"}},{"$f":"+'1.Demanda'!#REF!","v":{"$error":"#REF!"}},{"$f":"+'1.Demanda'!#REF!","v":{"$error":"#REF!"}},{"$f":"+'1.Demanda'!#REF!","v":{"$error":"#REF!"}},{"$f":"+'1.Demanda'!O152","v":0},{"$f":"+'1.Demanda'!P152","v":0},{"$f":"+'1.Demanda'!Q152","v":0}]
[]
[null,{"$f":"+B166","v":0},null,null,"Naves/año",{"$f":"+'1.Demanda'!G152","v":0},{"$f":"+'1.Demanda'!G153","v":0},{"$f":"+'1.Demanda'!G154","v":0},{"$f":"+'1.Demanda'!G155","v":0},{"$f":"+'1.Demanda'!G156","v":0},{"$f":"+'1.Demanda'!G157","v":0},{"$f":"+'1.Demanda'!G158","v":0},{"$f":"+'1.Demanda'!G159","v":0},{"$f":"+'1.Demanda'!G160","v":0},{"$f":"+'1.Demanda'!G161","v":0}]
[null,null,null,null,null,null,null,null,null,null,null,null,null,null,null,null,null,null,2]
[null,"14.2 Análisis de la oferta (*)"]
[]
[null,"Descripción",null,null,"Unidad de Medida","Año 1","Año 2","Año 3","Año 4","Año 5","Año 6","Año 7","Año 8","Año 9","Año 10",null,null,null,2]
[null,{"$f":"+B166","v":0},null,null,"Pas/año",{"$f":"+'1.Demanda'!C111","v":0},{"$f":"+F173","v":0},{"$f":"+G173","v":0},0,0,0,0,0,0,0]
[]
[null,{"$f":"+B168","v":0},null,null,"Naves/año",{"$f":"+'1.Demanda'!G111","v":0},{"$f":"+F175","v":0},{"$f":"+G175","v":0},{"$f":"+H175","v":0},{"$f":"+I175","v":0},{"$f":"+J175","v":0},{"$f":"+K175","v":0},{"$f":"+L175","v":0},{"$f":"+M175","v":0},{"$f":"+N175","v":0}]
[]
[null,"(*) La Oferta y Demanda puede contabilizarse en tramos de ser el caso."]
[]
[null,"14.3 Balance oferta demanda"]
[null,"Descripción",null,null,"Unidad de Medida","Año 1","Año 2","Año 3","Año 4","Año 5","Año 6","Año 7","Año 8","Año 9","Año 10"]
[null,{"$f":"+B173","v":0},null,null,"Pas/año",{"$f":"+F166-F173","v":0},{"$f":"+G166-G173","v":0},0,0,0,0,0,0,0,0,0,0,{"$error":"#REF!"},{"$error":"#REF!"},{"$error":"#REF!"},{"$error":"#REF!"},{"$error":"#REF!"},0,0,0]
[null,null,null,null,null,null,null,null,null,null,null,null,null,null,null,{"$f":"+P167-P174","v":0},0,0,0,0,0,0,0,0,0]
[null,{"$f":"+B175","v":0},null,null,"Naves/año",{"$f":"+F168-F175","v":0},0,0,0,0,0,0,0,0,0]
[]
[null,"14.4 Nivel de Brecha Asociado",null,null,"Unidad "]
[null," (Referido al Ítem 1.2)"]
[]
[null,"14.5 Analisis Tecnico"]
[]
[]
[null,"15. COSTOS DEL PROYECTO"]
[]
[null,"15.1 Costos de inversión"]
[null,"PRODUCTO / PROYECTO",null,null,null,"Unidad de medida representativa",null,"Cantidad","Costo/Und","Inversión total"]
[null,{"$f":"+B74","v":0},null,null,null,null,null,null,{"$f":"+'3.Costos'!G36","v":0},{"$f":"+H195*I195","v":0}]
[null,"PRODUCTO / PROYECTO",null,null,null,"Unidad de medida",null,"Cantidad","Costo unitario (soles)","Costo subtotal (soles)"]
[null,"Obras Provisionales",null,null,null,null,null,null,{"$f":"+'3.Costos'!H6","v":""},{"$f":"+IFERROR(H197*I197,\"\")","v":""}]
[null,"Trabajos Preliminares",null,null,null,null,null,null,{"$f":"+'3.Costos'!H7","v":0}]
[null,"Obras Civiles",null,null,null,null,null,null,{"$f":"+'3.Costos'!H8","v":0}]
[null,"Losa de acceso",null,null,null,null,null,null,{"$f":"+'3.Costos'!H9","v":0}]
[null,"Plataforma de embarque",null,null,null,null,null,null,{"$f":"+'3.Costos'!H10","v":0}]
[null,"Escalinata de Acceso",null,null,null,null,null,null,{"$f":"+'3.Costos'!H11","v":0}]
[null,"Pilar",null,null,null,null,null,null,{"$f":"+'3.Costos'!H12","v":0}]
[null,"Plataforma Auxiliar de embarque",null,null,null,null,null,null,{"$f":"+'3.Costos'!H13","v":0}]
[null,"Macizos de anclaje",null,null,null,null,null,null,{"$f":"+'3.Costos'!H14","v":0}]
[null,"Obras de arte y drenaje",null,null,null,null,null,null,{"$f":"+'3.Costos'!H15","v":0}]
[null,"Obras Metalmecanicas",null,null,null,null,null,null,{"$f":"+'3.Costos'!H16","v":0}]
[null,"Puente metálico - fijo",null,null,null,null,null,null,{"$f":"+'3.Costos'!H17","v":""}]
[null,"Puente metálico - basculante",null,null,null,null,null,null,{"$f":"+'3.Costos'!H18","v":0}]
[null,"Pontón de apoyo",null,null,null,null,null,null,{"$f":"+'3.Costos'!H19","v":0}]
[null,"Ponton embarcadero flotante",null,null,null,null,null,null,{"$f":"+'3.Costos'!H20","v":0}]
[null,"Transporte de estructuras via fluvial",null,null,null,null,null,null,{"$f":"+'3.Costos'!H21","v":0}]
[null,"Anclajes",null,null,null,null,null,null,{"$f":"+'3.Costos'!H22","v":0},{"$f":"+IFERROR(H213*I213,\"\")","v":0}]
[null,"Equipos y herramientas operación embarcadero",null,null,null,null,null,null,{"$f":"+'3.Costos'!H23","v":0},0]
[null,"Señalizacion de seguridad acuática",null,null,null,null,null,null,{"$f":"+'3.Costos'!H24","v":0}]
[null,"Mitigacion de impacto ambiental",null,null,null,null,null,null,{"$f":"+'3.Costos'!H25","v":0}]
[null,"Instalaciones eléctricas",null,null,null,null,null,null,{"$f":"+'3.Costos'!H26","v":""},""]
[]
[]
[null,"15.2 Cronograma de ejecución financiera"]
[]
[null,null,null,null,null,"Cronograma (mensual)"]
[null,"Proyecto","Actividad",null,"Costo Subtotal (soles)",1,2,3,4,5,6,7,8,9,10]
[null,{"$f":"+B195","v":0},"Obras Provisionales",null,{"$f":"+I197","v":""},{"$f":"IFERROR(F253*$E$224,\"\")","v":""},{"$f":"IFERROR(G253*$E$224,\"\")","v":""},"","","","","","","",""]
[null,null,"Trabajos Preliminares"]
[null,null,"Obras Civiles"]
[null,null,"Losa de Acceso"]
[null,null,"Plataforma de embarque"]
[null,null,"Escalinata de Acceso"]
[null,null,"Pilar"]
[null,null,"Plataforma Auxiliar de embarque"]
[null,null,"Macizos de anclaje"]
[null,null,"Obras de arte y drenaje"]
[null,null,"Obras Metalmecanicas"]
[null,null,"Puente metálico  - fijo"]
[null,null,"Puente metálico - basculante"]
[null,null,"Ponto de apoyo flotante"]
[null,null,"Ponton embarcadero flotante"]
[null,null,"Transporte de estructuras via fluvial"]
[null,null,"Anclajes"]
[null,null,"Equipos y herramientas operación embarcadero"]
[null,null,"Señalizacion de seguridad acuatica",null,{"$f":"+I213","v":0},{"$f":"IFERROR(#REF!*$E$242,\"\")","v":""},{"$f":"IFERROR(#REF!*$E$242,\"\")","v":""},{"$f":"IFERROR(#REF!*$E$242,\"\")","v":""},{"$f":"IFERROR(#REF!*$E$242,\"\")","v":""},{"$f":"IFERROR(#REF!*$E$242,\"\")","v":""},{"$f":"IFERROR(#REF!*$E$242,\"\")","v":""},{"$f":"IFERROR(#REF!*$E$242,\"\")","v":""},{"$f":"IFERROR(#REF!*$E$242,\"\")","v":""},{"$f":"IFERROR(#REF!*$E$242,\"\")","v":""},{"$f":"IFERROR(#REF!*$E$242,\"\")","v":""}]
[null,null,"Mitigacion de impacto ambiental",null,{"$f":"+I214","v":0},{"$f":"IFERROR(#REF!*$E$243,\"\")","v":""},{"$f":"IFERROR(#REF!*$E$243,\"\")","v":""},{"$f":"IFERROR(#REF!*$E$243,\"\")","v":""},{"$f":"IFERROR(#REF!*$E$243,\"\")","v":""},{"$f":"IFERROR(#REF!*$E$243,\"\")","v":""},{"$f":"IFERROR(#REF!*$E$243,\"\")","v":""},{"$f":"IFERROR(#REF!*$E$243,\"\")","v":""},{"$f":"IFERROR(#REF!*$E$243,\"\")","v":""},{"$f":"IFERROR(#REF!*$E$243,\"\")","v":""},{"$f":"IFERROR(#REF!*$E$243,\"\")","v":""}]
[null,null,"Instalaciones Electricas",null,{"$f":"+I217","v":""},{"$f":"IFERROR(#REF!*$E$244,\"\")","v":""},{"$f":"IFERROR(#REF!*$E$244,\"\")","v":""},{"$f":"IFERROR(#REF!*$E$244,\"\")","v":""},{"$f":"IFERROR(#REF!*$E$244,\"\")","v":""},{"$f":"IFERROR(#REF!*$E$244,\"\")","v":""},{"$f":"IFERROR(#REF!*$E$244,\"\")","v":""},{"$f":"IFERROR(#REF!*$E$244,\"\")","v":""},{"$f":"IFERROR(#REF!*$E$244,\"\")","v":""},{"$f":"IFERROR(#REF!*$E$244,\"\")","v":""},{"$f":"IFERROR(#REF!*$E$244,\"\")","v":""}]
[null,"Costo total",null,null,{"$f":"SUM(E224:E244)","v":0},{"$f":"SUM(F224:F244)","v":0},{"$f":"SUM(G224:G244)","v":0},0,0,0,0,0,0,0,0]
[]
[]
[]
[null,"15.3 Cronograma de ejecución física"]
[]
[null,null,null,null,null,"Cronograma (mensual)"]
[null,"Proyecto","Actividad",null,"Meta",1,2,3,4,5,6,7,8,9,10]
[null,{"$f":"+B224","v":0},"Obras Provisionales",null,{"$f":"+SUM(F253:O253)","v":0}]
[null,null,"Trabajos Preliminares"]
[null,null,"Obras Civiles"]
[null,null,"Losa de Acceso"]
[null,null,"Plataforma de embarque"]
[null,null,"Escalinata de Acceso"]
[null,null,"Pilar"]
[null,null,"Plataforma Auxiliar de embarque"]
[null,null,"Macizos de anclaje"]
[null,null,"Obras de arte y drenaje"]
[null,null,"Obras Metalmecanicas"]
[null,null,"Puente metálico  - fijo"]
[null,null,"Puente metálico - basculante"]
[null,null,"Ponto de apoyo flotante"]
[null,null,"Ponton embarcadero flotante"]
[null,null,"Transporte de estructuras via fluvial"]
[null,null,"Anclajes"]
[null,null,"Equipos y herramientas operación embarcadero"]
[null,null,"Señalizacion de seguridad acuatica"]
[null,null,"Mitigacion de impacto ambiental"]
[null,null,"Instalaciones Electricas"]
[]
[null,"15.4 Costos de operación y mantenimiento con y sin proyecto"]
[]
[null,"COSTOS",null,"AÑOS (Soles)"]
[null,null,null,"Año 1","Año 2","Año 3","Año 4","Año 5","Año 6","Año 7","Año 8","Año 9","Año 10"]
[null,"SIN PROYECTO","OPERACIÓN"]
[null,null,"MANTENIMIENTO"]
[null,"CON PROYECTO","OPERACIÓN"]
[null,null,"MANTENIMIENTO"]
[null,"INCREMENTAL","OPERACIÓN"]
[null,null,"MANTENIMIENTO"]
[]
[null,"16.CRITERIOS DE DECISIÓN DE INVERSIÓN"]
[]
[null,"Tipo",null,"Criterio de elección*",null,"Alternativa de Solución"]
[null,"Costo / Eficiencia*",null,"Valor Actual de los Costos (VAC)"]
[null,null,null,"Ratio C-E"]
[null,null,null,"Costo por metro lineal de Muelle",null,null,null,212600,"Linea  de Corte (S/ /ml)"]
[null,"* A precios sociales"]
[]
[null,"17. SOSTENIBILIDAD"]
[]
[null,"17.1  Responsable de la operación y mantenimiento del proyecto"]
[]
[]
[null,"17.2 ¿Es la Unidad Ejecutora de Inversiones la responsable de la Operación y Mantenimiento del proyecto de inversión con cargo a su Presupuesto Institucional?"]
[]
[]
[]
[null,"Documentos que sustentan los acuerdos institucionales u otros que garantizan el financiamiento de los gastos de operación y mantenimiento"]
[]
[null,"Documento",null,"Entidad / Organización",null,"Compromiso"]
[]
[]
[]
[]
[]
[null,"17.3 ¿El área donde se ubica el proyecto ha sido afectada por algún desastre?"]
[]
[]
[]
[null,"Medidas consideradas en el Proyecto para Mitigar el Riesgo de Desastre"]
[null,"Peligros","Evidencia","Nivel ","Medida de Reducción de Riesgo en el Contexto de Cambio Climático"]
[null,"Sismos"]
[null,"Friajes",null,null,null,null,null,null,null,null,null,null,null,null,null,"Bajo "]
[null,"Erupciones Volcánicas",null,null,null,null,null,null,null,null,null,null,null,null,null,"Medio "]
[null,"Sequías",null,null,null,null,null,null,null,null,null,null,null,null,null,"Alto"]
[null,"Lluvias intensas."]
[null,"Flujos de lodo (Huaicos)"]
[null,"Deslizamientos"]
[null,"Inundaciones"]
[null,"Vientos fuertes"]
[null,"Otros (Especificar):"]
[]
[null,"18. MODALIDAD DE EJECUCIÓN"]
[]
[null,"Nº","TIPO DE EJECUCIÓN",null,null,null,"Elegir Modalidad de Ejecución"]
[null,1,"ADMINISTRACIÓN DIRECTA"]
[null,2,"ADMINISTRACIÓN INDIRECTA – POR CONTRATA"]
[null,3,"ADMINISTRACIÓN INDIRECTA - ASOCIACIÓN PÚBLICA PRIVADA (APP)"]
[null,4,"ADMINISTRACIÓN INDIRECTA  (OBRAS POR IMPUESTOS)"]
[null,5,"ADMINISTRACIÓN INDIRECTA – NÚCLEO EJECUTOR "]
[]
[null,"19. IMPACTO AMBIENTAL"]
[]
[null,"ETAPAS DEL PROYECTO","IMPACTOS NEGATIVOS","MEDIDAS DE PREVENCIÓN, CONTROL Y/O MITIGACIÓN","MEDIOS DE VERIFICACIÓN DEL CUMPLIMIENTO",null,"FRECUENCIA DE EJECUCIÓN","(*) COSTO (S/)"]
[null,"EJECUCIÓN"]
[]
[]
[null,"FUNCIONAMIENTO"]
[]
[]
[null,"(*): El Monto de Prevención, Control y/o Mitigación deberá estar incluido en el Costo de Inversión (15.1) en la etapa de ejecución y los costos durante el funcionamiento en los costos de operación y mantenimiento (15.4)"]
[]
[null,"20. CONCLUSIONES Y RECOMENDACIONES"]
[]
[]
[]
[]
[null,"21. FIRMAS"]
[]
[]
[]
[]
[null,"     Responsable de la formulación y evaluación del proyecto",null,null,null,null,"Responsable de la Unidad Formuladora"]
[]
[]
[null,"NOTA:"]
[null,"Adjuntar anexos indicados en el instructivo"]

{"sheet":"1.Demanda","index":1,"n_rows":183,"n_cols":16,"rows_kept":183,"cut":false,"hidden":false,"merged":[[48,9,49,9],[48,0,49,0],[48,11,49,12],[48,10,49,10],[68,0,69,1],[55,11,55,12],[56,11,56,12],[50,11,50,12],[51,11,51,12],[52,11,52,12],[53,11,53,12],[54,11,54,12],[48,1,48,7],[48,8,49,8],[8,0,8,1],[9,0,9,1],[65,0,65,1],[64,3,64,4],[64,5,64,6],[63,3,63,6],[78,0,79,1],[66,0,67,1],[164,0,164,3],[83,0,84,0],[83,1,83,2],[83,3,84,3],[87,0,88,0],[76,0,77,1],[74,0,75,1],[70,0,71,1],[72,0,73,1],[0,11,0,12],[147,5,147,6],[147,1,147,2],[106,5,106,6],[106,1,106,2],[131,1,131,2],[131,5,131,6],[87,1,87,2],[87,3,88,3],[87,4,88,4],[0,0,0,7],[80,0,80,2],[83,4,84,4],[127,0,128,0],[6,0,6,1],[7,0,7,1]]}
["ASPECTOS DE LA DEMANDA",null,null,null,null,null,null,null,null,null,null,"HOJA N 01"]
["1.GENERALIDADES"]
[]
["LEYENDA:"]
[]
[]
["Departamento:"]
["Provincia:"]
["Distrito:"]
["Horizonte del Proyecto (en años):",null,{"$f":"+'Ficha Estandar'!F158","v":10}]
[]
[]
["1.1  Determinación del tráfico actual"]
[]
["i) Resumir los conteos de tránsito a nivel del día y tipo de nave"]
[]
["Resultados de los conteo de tráfico:",null,null,"Mes:",null,"Año:"]
[null,"Tipo de Nave","Lunes","Martes","Miércoles","Jueves","Viernes","Sábado","Domingo"]
[null,"Motochata",0]
[null,"Motonave"]
[null,"Barcazas"]
[null,"Ponguero"]
[null,"Canoas"]
[null,"Deslizador"]
[null,"TOTAL",{"$f":"SUM(C19:C24)","v":0},0,0,0,0,0,0]
[]
[]
[]
[]
[]
[]
[]
[]
[]
[]
[]
[]
[]
[]
[]
["ii) Aplicar la siguiente fórmula, para un conteo de 7 días"]
[]
[]
["Donde:","IMDS =","Índice Medio Diario Semanal de la Muestra "]
[null,"IMDA =","Índice Medio Anual"]
[null,"Vi =","Volumen Naviero diario de cada uno de los días de conteo"]
[null,"FC =","Factores de Corrección Estacional "]
[]
["Tipo de Nave","Tráfico de naves fluviales por Día",null,null,null,null,null,null,"SUBTOTAL (SEMANAL)","FC","TOTAL","Distribución (%)"]
[null,"Lunes","Martes","Miércoles","Jueves","Viernes","Sábado","Domingo","SEMANA","SEMANA","SEMANA"]
["Motochata",{"$f":"+C19","v":0},{"$f":"+D19","v":0},0,0,0,0,0,{"$f":"SUM(B51:H51)","v":0},null,null,{"$f":"+IFERROR(K51/$K$57*100,\"\")","v":""}]
["Motonave",{"$f":"+C20","v":0},0,0,0,0,0,0,{"$f":"SUM(B52:H52)","v":0},null,null,{"$f":"+IFERROR(K52/$K$57*100,\"\")","v":""}]
["Barcazas",0,0,0,0,0,0,0,0,null,null,""]
["Ponguero",0,0,0,0,0,0,0,0,null,null,""]
["Canoas",0,0,0,0,0,0,0,0,null,null,""]
["Deslizador",0,0,0,0,0,0,0,0,null,null,""]
["TOTAL",{"$f":"SUM(B51:B56)","v":0},0,0,0,0,0,0,0,{"$f":"SUM(J51:J56)","v":0},0,{"$f":"SUM(L51:M56)","v":0}]
[]
["2. ANALISIS DE LA DEMANDA"]
["2.1 DEMANDA ACTUAL"]
[]
["i) Movimiento de Pasajeros/Naves en el Embarcadero (Últimos Años)"]
[]
[null,null,null,"AÑO"]
[null,null,null,2010,null,2018]
["TIPO DE NAVE",null,"Ruta","Número de Pasajeros","Número de  Naves","Número de Pasajeros","Número de  Naves"]
["MOTONAVE",null,"ENTRADA"]
[null,null,"SALIDA"]
["MOTOCHATA",null,"ENTRADA"]
[null,null,"SALIDA"]
["BARCAZA",null,"ENTRADA"]
[null,null,"SALIDA"]
["DESLIZADOR",null,"ENTRADA"]
[null,null,"SALIDA"]
["PONGUERO",null,"ENTRADA"]
[null,null,"SALIDA"]
["CANOAS",null,"ENTRADA"]
[null,null,"SALIDA"]
["SUB - TOTAL",null,"ENTRADA",{"$f":"+D67+D69+D71++D73+D75+D77","v":0},{"$f":"+E67+E69+E71++E73+E75+E77","v":0},0,0]
[null,null,"SALIDA",{"$f":"+D68+D70+D72+D74+D76+D78","v":0},{"$f":"+E68+E70+E72+E74+E76+E78","v":0},0,0]
["TOTAL",null,null,{"$f":"+D79+D80","v":0},0,0,0]
[]
[]
["Años","Pasajeros / Año",null,"Pasajeros/Año (E/S)","Crecimiento Anual"]
[null,"Entrada","Salida"]
[{"$f":"+D65","v":2010},{"$f":"+D79","v":0},{"$f":"+D80","v":0},{"$f":"+B86+C86","v":0}]
[{"$f":"+F65","v":2018},{"$f":"+F79","v":0},{"$f":"+F80","v":0},{"$f":"+B87+C87","v":0},{"$f":"+IFERROR((D87-D86)/D86,\"\")","v":""}]
["Años","Naves / Año",null,"Naves/Año (E/S)","Crecimiento Anual"]
[null,"Entrada","Salida"]
[{"$f":"+A86","v":2010},{"$f":"+E79","v":0},{"$f":"+E80","v":0},{"$f":"+B90+C90","v":0}]
[{"$f":"+A87","v":2018},{"$f":"+G79","v":0},{"$f":"+G80","v":0},{"$f":"+B91+C91","v":0},{"$f":"+IFERROR((D91-D90)/D90,\"\")","v":""}]
[]
["2.2 PROYECCIONES DE LA DEMANDA"]
[]
["2.2.1 Tráfico Normal de Pasajeros / Naves (Demanda Efectiva)"]
[]
[]
["Donde:","Pn =","Flujo proyectado al año \"n\"  en (pasajeros, Naves)/año"]
[null,"P0 =","Flujo actual (año base) en (pasajeros, Naves)/año"]
[null,"n =","año futuro de proyeccción"]
[null,"r =","tasa anual de crecimiento"]
[]
["Tasa de Crecimiento para la Proyección:"]
[]
[]
[]
[null,"Proyección de Tráfico - Situación Sin Proyecto (pasajeros)",null,null,null,"Proyección de Tráfico - Situación Sin Proyecto (naves)"]
[]
[null,"AÑOS","Pasajeros/año",null,null,"AÑOS","Naves/año"]
[null,"Año Eval.",null,null,null,"Año Eval."]
[null,0,{"$f":"C110*(1+$C$105)","v":0},null,null,0,{"$f":"G110*(1+$G$105)","v":0}]
[null,{"$f":"+B111+1","v":1},{"$f":"C111*(1+$C$105)","v":0},null,null,{"$f":"+F111+1","v":1},0]
[null,{"$f":"+B112+1","v":2},0,null,null,{"$f":"+F112+1","v":2},0]
[null,3,0,null,null,3,0]
[null,4,0,null,null,4,0]
[null,5,0,null,null,5,0]
[null,6,0,null,null,6,0]
[null,7,0,null,null,7,0]
[null,8,0,null,null,8,0]
[null,9,0,null,null,9,0]
[null,10,0,null,null,10,0]
[]
["Nota: El modelo de proyección presentado (modelo lineal) es referencial, pudiendo variar dependiendo de los datos a analizar."]
[]
["2.2.2 Tráfico Generado de Pasajeros (Demanda Generada)"]
[]
[]
["Tipo de Intervención","% de Tráfico "]
[null,"Normal"]
[{"$f":"+'Ficha Estandar'!F24","v":"Mejoramiento"},null,null,null,null,null,null,null,null,null,null,null,null,null,null,5]
[null,null,null,null,null,null,null,null,null,null,null,null,null,null,null,10]
[null,"Proyección de Tráfico - Situación Con Proyecto (Pasajeros)",null,null,null,"Proyección de Tráfico - Situación Con Proyecto (Naves)",null,null,null,null,null,null,null,null,null,15]
[null,"AÑOS","Pasajeros/año",null,null,"AÑOS","Naves/año",null,null,null,null,null,null,null,null,20]
[null,{"$f":"+B111","v":0},null,null,null,{"$f":"+F111","v":0}]
[null,{"$f":"+B134+1","v":1},{"$f":"+C112*$B$130/100","v":0},null,null,{"$f":"+F134+1","v":1},{"$f":"+G112*$B$130/100","v":0}]
[null,{"$f":"+B135+1","v":2},0,null,null,{"$f":"+F135+1","v":2},0]
[null,3,0,null,null,3,0]
[null,4,0,null,null,4,0]
[null,5,0,null,null,5,0]
[null,6,0,null,null,6,0]
[null,7,0,null,null,7,0]
[null,8,0,null,null,8,0]
[null,9,0,null,null,9,0]
[null,10,0,null,null,10,0]
[]
["2.2.3 Tráfico Total de Pasajeros/Naves"]
[]
[null,"TOTAL DE PASAJEROS",null,null,null,"TOTAL DE NAVES"]
[]
[null,"AÑOS","Pasajeros (E/S)",null,null,"AÑOS","Naves/año"]
[null,{"$f":"+B134","v":0},{"$f":"+C134+C111","v":0},null,null,{"$f":"+F134","v":0},{"$f":"+G134+G111","v":0}]
[null,{"$f":"+B151+1","v":1},0,null,null,{"$f":"+F151+1","v":1},0]
[null,{"$f":"+B152+1","v":2},0,null,null,{"$f":"+F152+1","v":2},0]
[null,3,0,null,null,3,0]
[null,4,0,null,null,4,0]
[null,5,0,null,null,5,0]
[null,6,0,null,null,6,0]
[null,7,0,null,null,7,0]
[null,8,0,null,null,8,0]
[null,9,0,null,null,9,0]
[null,10,0,null,null,10,0]
[]
["2.3 Proyección de la población del área de influencia o beneficiarios directos"]
[]
["Tasa de Crecimiento para la Proyección Beneficiarios:"]
[]
["Proyección de Beneficiarios - con Proyecto"]
[]
[null,"AÑOS","Beneficiarios Directos","Beneficiarios Potenciales","Beneficiarios de Referencia"]
[null,0,{"$f":"+'Ficha Estandar'!D104","v":0},{"$f":"+'Ficha Estandar'!E104","v":0},{"$f":"+'Ficha Estandar'!F104","v":0}]
[null,{"$f":"+B170+1","v":1},{"$f":"+C170*(1+$E$165)","v":0},{"$f":"+D170*(1+$E$165)","v":0},{"$f":"+E170*(1+$E$165)","v":0}]
[null,{"$f":"+B171+1","v":2},{"$f":"+C171*(1+$E$165)","v":0},0,{"$f":"+E171*(1+$E$165)","v":0}]
[null,3,0,0,{"$f":"+E172*(1+$E$165)","v":0}]
[null,4,0,0,{"$f":"+E173*(1+$E$165)","v":0}]
[null,5,0,0,{"$f":"+E174*(1+$E$165)","v":0}]
[null,6,0,0,{"$f":"+E175*(1+$E$165)","v":0}]
[null,7,0,0,{"$f":"+E176*(1+$E$165)","v":0}]
[null,8,0,0,{"$f":"+E177*(1+$E$165)","v":0}]
[null,9,0,0,{"$f":"+E178*(1+$E$165)","v":0}]
[null,10,0,0,{"$f":"+E179*(1+$E$165)","v":0}]
[null,"PROMEDIO",{"$f":"AVERAGE(C171:C180)","v":0},{"$f":"AVERAGE(D171:D180)","v":0},0]
[]
["Nota: El modelo de proyección presentado (modelo lineal) es referencial, pudiendo variar dependiendo de los datos a analizar."]

{"sheet":"2.Caracteristicas de embarcader","index":2,"n_rows":12,"n_cols":3,"rows_kept":12,"cut":false,"hidden":false,"merged":[[0,0,0,1],[6,1,6,2],[5,0,5,2],[2,0,2,2]]}
["RECONOCIMIENTO DE LAS CONDICIONES DE SERVICIO DE ATRAQUE\nDE NAVES",null,"HOJA N 02"]
[]
["SITUACION ACTUAL - RESULTADO DE LA VISITA DE CAMPO"]
[]
[]
["Condiciones Iniciales del Proyecto"]
["Estado Actual del servicio de atraque de naves"]
["Eslora y calado de la naves que atracan "]
[]
["Características","Situación SIN PROYECTO","Situación CON PROYECTO"]
["Zona Acuática"]
["Zona Terrestre"]

{"sheet":"3.Costos","index":3,"n_rows":160,"n_cols":11,"rows_kept":160,"cut":false,"hidden":false,"merged":[[37,1,37,7],[36,3,36,5],[20,1,20,2],[21,1,21,2],[48,4,48,5],[48,6,48,7],[29,3,29,5],[5,1,5,2],[22,1,22,2],[23,1,23,2],[24,1,24,2],[16,1,16,2],[18,1,18,2],[19,1,19,2],[9,1,9,2],[10,1,10,2],[15,1,15,2],[48,9,48,10],[48,3,49,3],[48,1,49,2],[119,1,119,2],[122,1,122,2],[105,1,105,2],[102,1,102,2],[103,1,103,2],[104,1,104,2],[100,1,100,2],[101,1,101,2],[48,0,49,0],[118,1,118,2],[84,1,84,2],[85,1,85,2],[88,1,88,2],[89,1,89,2],[90,1,90,2],[95,1,95,2],[96,1,96,2],[97,1,97,2],[98,1,98,2],[99,1,99,2],[63,1,63,2],[146,1,146,2],[153,1,153,2],[143,1,143,2],[144,1,144,2],[147,1,147,2],[148,1,148,2],[149,1,149,2],[150,1,150,2],[151,1,151,2],[152,1,152,2],[1,5,1,6],[125,1,125,2],[126,1,126,2],[127,1,127,2],[128,1,128,2],[123,1,123,2],[124,1,124,2],[121,1,121,2],[2,6,2,7],[4,1,4,2],[35,3,35,5],[8,1,8,2],[17,1,17,2],[25,1,25,2],[31,3,31,5],[26,3,26,5]]}
[null,"COSTO DE LA INVERSIÓN",null,null,null,null,null,"HOJA N 03 A"]
[null,null,null,null,null,"Fecha de Costos",null,{"$f":"+TODAY()","v":"2018-11-19"}]
[null,"ALTERNATIVA DE SOLUCIÓN"]
[null,null,"Longitud de Muelle",null,"m"]
["Ítem","Concepto (*)",null,"Unidad de medida","Cantidad","Costo unitario (soles)","Costo subtotal (soles)","Costo por Componente"]
[1,"Obras Provisionales",null,null,null,null,{"$f":"SUM(G7:G9)","v":0},{"$f":"+IFERROR(G6/$G$27*$G$36,\"\")","v":""}]
[2,"Trabajos Preliminares",null,null,null,null,{"$f":"+E7*F7","v":0}]
[3,"Obras Civiles",null,null,null,null,{"$f":"+E8*F8","v":0}]
[3.1,"Losa de Acceso",null,null,null,null,0]
[3.2,"Plataforma de embarque"]
[3.3,"Escalinata de Acceso"]
[3.4,"Pilar"]
[3.5,"Plataforma Auxiliar de embarque"]
[3.6,"Macizos de anclaje"]
[3.7,"Obras de arte y drenaje"]
[4,"Obras Metalmecanicas"]
[4.0999999999999996,"Puente metálico  - fijo",null,null,null,null,{"$f":"SUM(G18:G25)","v":0},{"$f":"+IFERROR(G17/$G$27*$G$36,\"\")","v":""}]
[4.2,"Puente metálico - basculante",null,null,null,null,0]
[4.3,"Ponto de apoyo flotante",null,null,null,null,0]
[4.4000000000000004,"Ponton embarcadero flotante",null,null,null,null,0]
[4.5,"Transporte de estructuras via fluvial",null,null,null,null,0]
[4.5999999999999996,"Anclajes",null,null,null,null,0]
[4.7,"Equipos y herramientas operación embarcadero",null,null,null,null,0]
[4.8,"Señalizacion de seguridad acuatica",null,null,null,null,0]
[5,"Mitigacion de impacto ambiental",null,null,null,null,0]
[6,"Instalaciones Electricas",null,null,null,null,0,{"$f":"+IFERROR(G26/$G$27*$G$36,\"\")","v":""}]
["(*): Estructura de costos Referencial",null,null,"COSTO DIRECTO",null,null,{"$f":"+G6+G16+G26+G7+G8+G25+G26","v":0}]
[null,null,null,"GASTOS GENERALES",null,null,{"$f":"+F28*G27","v":0}]
[null,null,null,"UTILIDAD",null,null,{"$f":"+F29*G27","v":0}]
[null,null,null,"SUB TOTAL",null,null,{"$f":"+G27+G28+G29","v":0}]
[null,null,null,"IMPUESTOS (IGV)",null,null,{"$f":"+F31*G30","v":0}]
[null,null,null,"PRESUPUESTO DE OBRA",null,null,{"$f":"+G30+G31","v":0}]
[null,null,null,"SUPERVISIÓN",null,null,{"$f":"+F33*G32","v":0}]
[null,null,null,"ESTUDIO DEFINITIVO",null,null,{"$f":"+F34*G32","v":0}]
[null,null,null,"GESTION DEL PROYECTO",null,null,{"$f":"+F35*G32","v":0}]
[null,null,null,"INVERSION TOTAL",null,null,{"$f":"+G32+G33+G34+G35","v":0}]
[null,null,null,"INVERSION /m de muelle",null,null,{"$f":"+IFERROR(G36/#REF!,\"\")","v":""}]
[]
[]
[]
[]
[null,null,null,null,null,null,null,null,null,null,"HOJA N 03 B"]
[null,"CRONOGRAMA DE EJECUCION FINANCIERA"]
[]
[null,"Obra:",null,null,null,"Plazo de Ejecucion:"]
[null,"Propietario:",null,null,null,"Fecha:"]
[null,"Ubicación:",null,null,null,"Provincia:"]
[null,"Region:",null,null,null,"Distrito:"]
["Ítem","Concepto (*)",null,"Costo Total (soles)","Mes 01",null,"Mes 02",null,"…","Mes 08"]
[null,null,null,null,"Costo","%","Costo","%","…","Costo","%"]
[1,"Obras Provisionales",null,null,null,null,{"$f":"SUM(G54:G56)","v":0},{"$f":"+IFERROR(G51/$G$27*$G$36,\"\")","v":""},{"$f":"SUM(I54:I56)","v":0},0,{"$f":"+IFERROR(J51/$G$27*$G$36,\"\")","v":""}]
[2,"Trabajos Preliminares"]
[3,"Obras Civiles"]
[3.1,"Losa de Acceso",null,null,null,null,{"$f":"+E54*F54","v":0},null,{"$f":"+G54*H54","v":0},0]
[3.2,"Plataforma de embarque",null,null,null,null,{"$f":"+E55*F55","v":0},null,0,0]
[3.3,"Escalinata de Acceso",null,null,null,null,0,null,0,0]
[3.4,"Pilar"]
[3.5,"Plataforma Auxiliar de embarque"]
[3.6,"Macizos de anclaje"]
[3.7,"Obras de arte y drenaje"]
[4,"Obras Metalmecanicas",null,null,null,null,{"$f":"SUM(G62:G69)","v":0},{"$f":"+IFERROR(G61/$G$27*$G$36,\"\")","v":""},{"$f":"SUM(I62:I69)","v":0},0,{"$f":"+IFERROR(J61/$G$27*$G$36,\"\")","v":""}]
[4.0999999999999996,"Puente metálico  - fijo",null,null,null,null,{"$f":"+E62*F62","v":0},null,{"$f":"+G62*H62","v":0},0]
[4.2,"Puente metálico - basculante",null,null,null,null,0,null,0,0]
[4.3,"Ponto de apoyo flotante",null,null,null,null,0,null,0,0]
[4.4000000000000004,"Ponton embarcadero flotante",null,null,null,null,0,null,0,0]
[4.5,"Transporte de estructuras via fluvial",null,null,null,null,0,null,0,0]
[4.5999999999999996,"Anclajes",null,null,null,null,0,null,0,0]
[4.7,"Equipos y herramientas operación embarcadero",null,null,null,null,0,null,0,0]
[4.8,"Señalizacion de seguridad acuatica",null,null,null,null,0,null,0,0]
[5,"Mitigacion de impacto ambiental",null,null,null,null,0,{"$f":"+IFERROR(G70/$G$27*$G$36,\"\")","v":""},null,null,{"$f":"+IFERROR(J70/$G$27*$G$36,\"\")","v":""}]
[6,"Instalaciones Electricas",null,null,null,null,0,{"$f":"+IFERROR(G71/$G$27*$G$36,\"\")","v":""},null,null,{"$f":"+IFERROR(J71/$G$27*$G$36,\"\")","v":""}]
[null,"COSTO DIRECTO"]
[null,"GASTOS GENERALES"]
[null,"UTILIDAD"]
[null,"SUB TOTAL"]
[null,"IMPUESTO (IGV)"]
[null,"PRESUPUESTO DE OBRA"]
[null,"AVANCE PARCIAL"]
[null,"AVANCE ACUMULADO"]
["(*): Estructura Referencial"]
[]
[null,null,null,null,null,null,null,null,null,null,"HOJA N 03 C"]
[null,"CRONOGRAMA DE EJECUCION FISICA"]
[]
["Ítem","Concepto (*)",null,"Duración \ntotal","Mes 01","Mes 02","Mes 03","Mes 04","Mes 05","…","Mes 10"]
[1,"Obras Provisionales",null,null,null,null,{"$f":"SUM(G89:G91)","v":0},{"$f":"+IFERROR(G86/$G$27*$G$36,\"\")","v":""},{"$f":"SUM(I89:I91)","v":0},null,{"$f":"SUM(K89:K91)","v":0}]
[2,"Trabajos Preliminares"]
[3,"Obras Civiles"]
[3.1,"Losa de Acceso",null,null,null,null,{"$f":"+E89*F89","v":0},null,{"$f":"+G89*H89","v":0},null,{"$f":"+I89*J89","v":0}]
[3.2,"Plataforma de embarque",null,null,null,null,{"$f":"+E90*F90","v":0},null,0,null,0]
[3.3,"Escalinata de Acceso",null,null,null,null,0,null,0,null,0]
[3.4,"Pilar"]
[3.5,"Plataforma Auxiliar de embarque"]
[3.6,"Macizos de anclaje"]
[3.7,"Obras de arte y drenaje"]
[4,"Obras Metalmecanicas",null,null,null,null,{"$f":"SUM(G97:G104)","v":0},{"$f":"+IFERROR(G96/$G$27*$G$36,\"\")","v":""},{"$f":"SUM(I97:I104)","v":0},null,{"$f":"SUM(K97:K104)","v":0}]
[4.0999999999999996,"Puente metálico  - fijo",null,null,null,null,{"$f":"+E97*F97","v":0},null,{"$f":"+G97*H97","v":0},null,{"$f":"+I97*J97","v":0}]
[4.2,"Puente metálico - basculante",null,null,null,null,0,null,0,null,0]
[4.3,"Ponto de apoyo flotante",null,null,null,null,0,null,0,null,0]
[4.4000000000000004,"Ponton embarcadero flotante",null,null,null,null,0,null,0,null,0]
[4.5,"Transporte de estructuras via fluvial",null,null,null,null,0,null,0,null,0]
[4.5999999999999996,"Anclajes",null,null,null,null,0,null,0,null,0]
[4.7,"Equipos y herramientas operación embarcadero",null,null,null,null,0,null,0,null,0]
[4.8,"Señalizacion de seguridad acuatica",null,null,null,null,0,null,0,null,0]
[5,"Mitigacion de impacto ambiental",null,null,null,null,0,{"$f":"+IFERROR(G105/$G$27*$G$36,\"\")","v":""}]
[6,"Instalaciones Electricas",null,null,null,null,0,{"$f":"+IFERROR(G106/$G$27*$G$36,\"\")","v":""}]
["(*): Estructura Referencial"]
[]
[]
[]
[null,"COSTO DE OPERACIÓN Y MANTENIMIENTO",null,null,null,null,null,null,null,null,"HOJA N 03 D"]
[]
[null,"SITUACION SIN PROYECTO"]
[]
[null,"Obra:",null,null,"Plazo de Ejecucion:"]
[null,"Propietario:",null,null,"Fecha:"]
[null,"Responsable del Mantenimiento"]
[null,"Cargo del Responsable"]
["Ítem","Concepto (*)",null,"Unidad de medida","Cantidad","Costo unitario (soles)"]
[1,"Costos de Operación"]
[2,"Costos de Mantenimiento"]
[2.1,"Obras Metalmecanicas"]
[2.2000000000000002,"Puente metálico  - fijo"]
[2.2999999999999998,"Puente metálico - basculante"]
[2.4,"Ponto de apoyo flotante"]
[2.5,"Ponton embarcadero flotante"]
[2.6,"Anclajes y pilotes de acero"]
[2.7,"Equipos y herramientas operación embarcadero"]
[2.8,"Señalizacion de seguridad acuatica"]
["(*): Estructura de costos Referencial",null,null,"COSTO DIRECTO"]
[null,null,null,"GASTOS GENERALES"]
[null,null,null,"UTILIDAD"]
[null,null,null,"SUB TOTAL"]
[null,null,null,"IMPUESTOS (IGV)"]
[null,null,null,"PRESUPUESTO "]
[]
[]
[null,"SITUACION CON PROYECTO - ALTERNATIVA DE SOLUCIÓN"]
[null,null,null,null,null,null,null,null,null,null,"HOJA N 03 E"]
[null,"Obra:",null,null,"Plazo de Ejecucion:"]
[null,"Propietario:",null,null,"Fecha:"]
[null,"Responsable del Mantenimiento"]
[null,"Cargo del Responsable"]
["Ítem","Concepto (*)",null,"Unidad de medida","Cantidad","Costo Unitario (soles)"]
[1,"Costos de Operación"]
[2,"Costos de Mantenimiento"]
[2.1,"Obras Metalmecanicas"]
[2.2000000000000002,"Puente metálico  - fijo"]
[2.2999999999999998,"Puente metálico - basculante"]
[2.4,"Ponto de apoyo flotante"]
[2.5,"Ponton embarcadero flotante"]
[2.6,"Anclajes y pilotes de acero"]
[2.7,"Equipos y herramientas operación embarcadero"]
[2.8,"Señalizacion de seguridad acuatica"]
["(*): Estructura de costos Referencial",null,null,"COSTO DIRECTO"]
[null,null,null,"GASTOS GENERALES"]
[null,null,null,"UTILIDAD"]
[null,null,null,"SUB TOTAL"]
[null,null,null,"IMPUESTOS (IGV)"]
[null,null,null,"PRESUPUESTO "]

{"sheet":"4. Evaluación C-E","index":4,"n_rows":63,"n_cols":18,"rows_kept":63,"cut":false,"hidden":false,"merged":[[62,4,62,5],[29,1,30,1],[0,0,0,3],[46,0,47,0],[10,0,12,0],[28,0,30,0],[29,2,29,3],[28,2,28,3],[46,1,46,2],[10,1,10,2],[11,1,12,1],[11,2,12,2],[10,3,10,5],[11,3,11,5]]}
["EVALUACION ECONOMICA",null,null,null,null,"HOJA N 04"]
[]
["A) FACTORES DE CONVERSIÓN A PRECIOS SOCIALES"]
[null,"Obras","Factor","Tasa Social de Descuento",0.08]
[null,"Inversión",0.79]
[null,"Mantenimiento y Operación",0.75]
[]
[]
["B) COSTOS DE INVERSIÓN Y MANTENIMIENTO A PRECIOS DEL MERCADO"]
[]
["Año","Sin Proyecto ",null,"Con Proyecto"]
[null,"Mantenimiento","Operación","Alternativa Solución"]
[null,null,null,"Inversión","Mantenimiento","Operación"]
[0,null,null,{"$f":"+'3.Costos'!G36","v":0},null,null,null,null,{"$f":"TRANSPOSE(C15:C24)","v":0},0,0,0,0,0,0,0,0,0]
[1,{"$f":"+'3.Costos'!F160","v":0},null,null,null,null,null,null,{"$f":"TRANSPOSE(E15:E24)","v":0},0,0,0,0,0,0,0,0,0]
[2,null,null,null,null,null,null,null,{"$f":"TRANSPOSE(G15:G24)","v":0},0,0,0,0,0,0,0,0,0]
[3]
[4]
[5]
[6]
[7]
[8]
[9]
[10]
[]
[]
["C) COSTOS DE INVERSIÓN Y MANTENIMIENTO A PRECIOS SOCIALES"]
[]
["Año","Sin Proyecto ","Con Proyecto"]
[null,"Mantenimiento y Operación","Alternativa Solución"]
[null,null,"Inversión","Mantenim. Y Operación"]
[0,{"$f":"+(B14+C14)*$C$6","v":0},{"$f":"+D14*C5","v":0}]
[1,{"$f":"+(B15+C15)*$C$6","v":0},null,{"$f":"+(E15+F15)*$C$6","v":0}]
[2,0,null,{"$f":"+(E16+F16)*$C$6","v":0}]
[3,0,null,0]
[4,0,null,0]
[5,0,null,0]
[6,0,null,0]
[7,0,null,0]
[8,0,null,0]
[9,0,null,0]
[10,0,null,0]
[]
["D) COSTOS INCREMENTALES"]
["En Soles a Precios Sociales"]
[]
["Año","Alternativa Solución"]
[null,"Inversión","Mantenim. Y Operación"]
[0,{"$f":"+C32-B32","v":0}]
[{"$f":"+A49+1","v":1},null,{"$f":"+D33-B33","v":0}]
[2,null,{"$f":"+D34-B34","v":0}]
[3,null,0]
[4,null,0]
[5,null,0]
[6,null,0]
[7,null,0]
[8,null,0]
[9,null,0]
[10,null,0]
[null,"Valor Actual de los Costos (VAC)",{"$f":"NPV($E$4,C50:C59)+B49","v":0}]
[null,"Prom. Población Beneficiada (Pasajeros)"]
[null,"Ratio C-E",{"$f":"+IFERROR(C60/C61,\"\")","v":""}]
[null,"Costo por metro lineal de Muelle",{"$f":"C60/'3.Costos'!D4","v":{"$error":"#DIV/0!"}},212600,"Linea  de Corte (S/ /ml)"]

{"sheet":"1.1 FORMATO ENCUESTAS PASAJ","index":5,"n_rows":51,"n_cols":20,"rows_kept":51,"cut":false,"hidden":false,"merged":[[42,10,44,10],[42,2,44,2],[42,3,44,3],[42,4,44,4],[42,5,44,5],[42,8,44,8],[42,9,44,9],[36,10,38,10],[39,2,41,2],[39,3,41,3],[39,4,41,4],[39,5,41,5],[39,8,41,8],[39,9,41,9],[39,10,41,10],[36,2,38,2],[36,3,38,3],[36,4,38,4],[36,5,38,5],[36,8,38,8],[36,9,38,9],[30,10,32,10],[33,2,35,2],[33,3,35,3],[33,4,35,4],[33,5,35,5],[33,8,35,8],[33,9,35,9],[33,10,35,10],[30,2,32,2],[30,3,32,3],[30,4,32,4],[30,5,32,5],[30,8,32,8],[30,9,32,9],[24,10,26,10],[27,2,29,2],[27,3,29,3],[27,4,29,4],[27,5,29,5],[27,8,29,8],[27,9,29,9],[27,10,29,10],[24,2,26,2],[24,3,26,3],[24,4,26,4],[24,5,26,5],[24,8,26,8],[24,9,26,9],[18,10,20,10],[21,2,23,2],[21,3,23,3],[21,4,23,4],[21,5,23,5],[21,8,23,8],[21,9,23,9],[21,10,23,10],[18,2,20,2],[18,3,20,3],[18,4,20,4],[18,5,20,5],[18,8,20,8],[18,9,20,9],[12,9,14,9],[12,10,14,10],[15,2,17,2],[15,3,17,3],[15,4,17,4],[15,5,17,5],[15,8,17,8],[15,9,17,9],[15,10,17,10],[12,2,14,2],[12,3,14,3],[12,4,14,4],[12,5,14,5],[12,8,14,8],[4,2,4,19],[5,2,5,18],[11,11,11,12],[11,13,11,14],[11,15,11,18]]}
[" "]
[]
[]
[null,null,null,null,null,null,null,null,null,null,null,null,null,null,null,"FORMATO Nº 1.1"]
[" ","FORMATO ENCUESTA ORIGEN Y DESTINO DE PASAJEROS","FORMATO ENCUESTA ORIGEN Y DESTINO DE PASAJEROS, CARGA Y NAVES"]
[null,"ESTUDIO DE TRAFICO","ESTUDIO DE TRÁFICO"]
[]
[null,null,"RUTA",null," ",null,null,null,null," "," ",null,"ESTACION"]
[null,null,"UBICACIÓN ",null," ",null,null,null," "," ",null,null,"CODIGO DE LA ESTACION"]
[null,null,"SENTIDO",null," ",null,null,null,null,null,null,null,"DIA Y FECHA",null,null,null,null," "," "," "]
[]
[null,"Fecha","Hora","Tipo de embarcación","Matrícula","Año","Tipo de carga","Capacidad de la embarcaación","Número de Toneladas","Nº Asientos","Nº Pasajeros","Origen",null,"Destino",null,"Motivo de Viaje"]
[null,null,"8 : 00 a.m.",null,null,null,null,null,null,null,null,"Lugar",null,"Lugar",null,"T:","P:","E:","S:"]
[null,null,null,null,null,null,null,null,null,null,null,"Prov.",null,"Prov."]
[null,null,null,null,null,null,null,null,null,null,null,"Dpto",null,"Dpto"]
[null,null," ",null,null,null,null,null,null,null,null,"Lugar",null,"Lugar",null,"T:","P:","E:","S:"]
[null,null,null,null,null,null,null,null,null,null,null,"Prov.",null,"Prov."]
[null,null,null,null,null,null,null,null,null,null,null,"Dpto",null,"Dpto"]
[null,null," ",null,null,null,null,null,null,null,null,"Lugar",null,"Lugar",null,"T:","P:","E:","S:"]
[null,null,null,null,null,null,null,null,null,null,null,"Prov.",null,"Prov."]
[null,null,null,null,null,null,null,null,null,null,null,"Dpto",null,"Dpto"]
[null,null," ",null,null,null,null,null,null,null,null,"Lugar",null,"Lugar",null,"T:","P:","E:","S:"]
[null,null,null,null,null,null,null,null,null,null,null,"Prov.",null,"Prov."]
[null,null,null,null,null,null,null,null,null,null,null,"Dpto",null,"Dpto"]
[null,null," ",null,null,null,null,null,null,null,null,"Lugar",null,"Lugar",null,"T:","P:","E:","S:"]
[null,null,null,null,null,null,null,null,null,null,null,"Prov.",null,"Prov."]
[null,null,null,null,null,null,null,null,null,null,null,"Dpto",null,"Dpto"]
[null,null," ",null,null,null,null,null,null,null,null,"Lugar",null,"Lugar",null,"T:","P:","E:","S:"]
[null,null,null,null,null,null,null,null,null,null,null,"Prov.",null,"Prov."]
[null,null,null,null,null,null,null,null,null,null,null,"Dpto",null,"Dpto"]
[null,null," ",null,null,null,null,null,null,null,null,"Lugar",null,"Lugar",null,"T:","P:","E:","S:"]
[null,null,null,null,null,null,null,null,null,null,null,"Prov.",null,"Prov."]
[null,null,null,null,null,null,null,null,null,null,null,"Dpto",null,"Dpto"]
[null,null," ",null,null,null,null,null,null,null,null,"Lugar",null,"Lugar",null,"T:","P:","E:","S:"]
[null,null,null,null,null,null,null,null,null,null,null,"Prov.",null,"Prov."]
[null,null,null,null,null,null,null,null,null,null,null,"Dpto",null,"Dpto"]
[null,null," ",null,null,null,null,null,null,null,null,"Lugar",null,"Lugar",null,"T:","P:","E:","S:"]
[null,null,null,null,null,null,null,null,null,null,null,"Prov.",null,"Prov."]
[null,null,null,null,null,null,null,null,null,null,null,"Dpto",null,"Dpto"]
[null,null," ",null,null,null,null,null,null,null,null,"Lugar",null,"Lugar",null,"T:","P:","E:","S:"]
[null,null,null,null,null,null,null,null,null,null,null,"Prov.",null,"Prov."]
[null,null,null,null,null,null,null,null,null,null,null,"Dpto",null,"Dpto"]
[null,null," ",null,null,null,null,null,null,null,null,"Lugar",null,"Lugar",null,"T:","P:","E:","S:"]
[null,null,null,null,null,null,null,null,null,null,null,"Prov.",null,"Prov."]
[null,null,null,null,null,null,null,null,null,null,null,"Dpto",null,"Dpto"]
[]
[null,null,null,null,null,null,null,null,null,null,null,null,null,null,"ENCUESTADOR :"]
[]
[null,null,null,null,null,null,null,null,null,null,null,null,null,null,"JEFE DE BRIGADA :"," "]
[]
[null,null,null,null,null,null,null,null,null,null,null,null,null,null,"ING. RESPONSABLE :"]

{"sheet":"0. Tráfico","index":6,"n_rows":49,"n_cols":10,"rows_kept":49,"cut":false,"hidden":true,"merged":[[0,0,0,9],[4,2,4,6],[38,1,38,6],[42,1,44,1],[45,1,47,1],[36,1,36,6],[20,1,20,6],[21,1,21,6],[18,1,18,7]]}
["    TIPO DE NAVES"]
[]
[]
[]
[null,null,"Flujo de Naves en la localidad (Semanal)"]
[null,"Ámbito","Tipo","Lunes","Martes","Miercoles","Jueves","Viernes","Sábado","Domingo"]
[null,"Fluvial"]
[null,null,"Pasajero y carga",0,0,0,0,0,0,0]
[null,null,"Pasajeros",0,0,0,0,0,0,0]
[null,null,"Carga General",0,0,0,0,0,0,0]
[null,null,"Deslizador",0,0,0,0,0,0,0]
[]
[]
[]
[]
[]
[]
[]
[null,"    TIPO DE NAVES"]
[]
[null,"Flujo de Naves en el horizonte del proyecto"]
[null,"Año 2018-2028"]
[]
[null,"Ámbito","Tipo","Año 01","Año 02","Año 03","Año 04","%"]
[null,"Fluvial"]
[null,null,"Pasajero y carga",0,0,0,0]
[null,null,"Pasajero",0,0,0,0]
[null,null,"Carga General",0,0,0,0]
[null,null,"Deslizador",0,0,0,0]
[]
[null,"Fuente: Sistema de Redenaves Electronico APN"]
[null,"Elaborado por el área de Estadísticas - APN"]
[]
[]
[]
[]
[null,"CARACTERÍSTICAS DEL PARQUE NAVIERO FLUVIAL DEL ÁREA DE INFLUENCIA"]
[]
[null,"Parque naviero fluvial por tipo de servicio"]
[]
[null,"Ambito","Estadísticos","Eslora (m)","Manga  (m)","Calado  (m)","UAB"]
[null,"Fluvial"]
[null,"Pasajero y carga","Maximo",0,0,0,0]
[null,null,"Promedio",0,0,0,0]
[null,null,"Minimo",0,0,0,0]
[null,"Pasajero","Maximo",0,0,0,0]
[null,null,"Promedio",0,0,0,0]
[null,null,"Minimo",0,0,0,0]
[null,"Fuente: Elaborado en Campo"]

{"sheet":"Hoja9","index":7,"n_rows":23,"n_cols":24,"rows_kept":23,"cut":false,"hidden":true,"merged":[]}
["AMAZONAS","ANCASH","APURÍMAC","AREQUIPA.","AYACUCHO","CAJAMARCA.","LIMA.","CUSCO.","HUANCAVELICA.","HUANUCO.","ICA.","JUNÍN.","LA LIBERTAD","LAMBAYEQUE.","LORETO.","MADRE DE DIOS","MOQUEGUA","PASCO.","PIURA.","PUNO.","SAN_MARTIN.","TACNA.","TUMBES.","UCAYALI"]
["CHACHAPOYAS","HUARAZ","ABANCAY","AREQUIPA","HUAMANGA","CAJAMARCA","CALLAO","CUSCO","HUANCAVELICA","HUANUCO","ICA","HUANCAYO","TRUJILLO","CHICLAYO","MAYNAS","TAMBOPATA","MARISCAL NIETO","PASCO","PIURA","PUNO","MOYOBAMBA","TACNA","TUMBES","CORONEL PORTILLO"]
["BAGUA","AIJA","ANDAHUAYLAS","CAMANÁ","CANGALLO","CAJABAMBA","LIMA","ACOMAYO","ACOBAMBA","AMBO","CHINCHA","CONCEPCIÓN","ASCOPE","FERREÑAFE","ALTO AMAZONAS","MANÚ","GENERAL SÁNCHEZ CERRO","DANIEL A. CARRIÓN","AYABACA","AZÁNGARO","BELLAVISTA","CANDARAVE","CONTRALMIRANTE VILLAR","ATALAYA"]
["BONGARÁ","ANTONIO RAYMONDI","ANTABAMBA","CARAVELÍ","HUANCA SANCOS","CELENDÍN","BARRANCA","ANTA","ANGARAES","DOS DE MAYO","NAZCA","CHANCHAMAYO","BOLÍVAR","LAMBAYEQUE","LORETO","TAHUAMANÚ","ILO","OXAPAMPA","HUANCABAMBA","CARABAYA","EL DORADO","JORGE BASADRE","ZARUMILLA","PADRE ABAD"]
["CONDORCANQUI","ASUNCIÓN","AYMARAES","CASTILLA","HUANTA","CHOTA","CAJATAMBO","CALCA","CASTROVIRREYNA","HUACAYBAMBA","PALPA","JAUJA","CHEPÉN",null,"MARISCAL RAMÓN CASTILLA",null,null,null,"MORROPÓN","CHUCUITO","HUALLAGA","TARATA",null,"PURÚS"]
["LUYA","BOLOGNESI","COTABAMBAS","CAYLLOMA","LA MAR","CONTUMAZÁ","CANTA","CANAS","CHURCAMPA","HUAMALIES","PISCO","JUNIN","JULCÁN",null,"REQUENA",null,null,null,"PAITA","EL COLLAO","LAMAS"]
["RODRÍGUEZ DE MENDOZA","CARHUAZ","CHINCHEROS","CONDESUYOS","LUCANAS","CUTERVO","CAÑETE","CANCHIS","HUAYTARÁ","LEONCIO PRADO",null,"SATIPO ","OTUZCO",null,"UCAYALI",null,null,null,"SULLANA","HUANCANÉ","MARISCAL CÁCERES"]
["UTCUBAMBA","CARLOS FERMÍN FITZCARRALD","GRAU","CONDESUYOS","PARINACOCHAS","HUALGAYOC","HUARAL","CHUMBIVILCAS","TAYACAJA","MARAÑÓN",null,"TARMA","PACASMAYO",null,"DATEM DEL MARAÑÓN",null,null,null,"TALARA","LAMPA","PICOTA"]
[null,"CASMA",null,"ISLAY","PAUCAR DEL SARA SARA","JAÉN","HUAURA","ESPINAR",null,"PACHITEA",null,"YAULI","PATAZ",null,null,null,null,null,"SECHURA","MELGAR","RIOJA"]
[null,"CORONGO",null,"LA UNIÓN","SUCRE","SAN IGNACIO","OYÓN","LA CONVENCIÓN",null,"PUERTO INCA",null,"CHUPACA","SÁNCHEZ CARRIÓN",null,null,null,null,null,null,"MOHO","SAN_MARTIN"]
[null,"HUARI",null,null,"VÍCTOR FAJARDO","SAN MARCOS","YAUYOS","PARURO",null,"LAURICOCHA",null,null,"SANTIAGO DE CHUCO",null,null,null,null,null,null,"SAN ANTONIO DE PUTINA","TOCACHE"]
[null,"HUARMEY",null,null,"VILCAS HUAMÁN","SAN MIGUEL",null,"PAUCARTAMBO",null,"YAROWILCA",null,null,"GRAN CHIMÚ",null,null,null,null,null,null,"SAN ROMÁN"]
[null,"HUAYLAS",null,null,null,"SAN PABLO",null,"QUISPICANCHI",null,null,null,null,"VIRÚ",null,null,null,null,null,null,"SANDIA"]
[null,"MARISCAL LUZURIAGA",null,null,null,"SANTA CRUZ",null,"URUBAMBA",null,null,null,null,null,null,null,null,null,null,null,"YUNGUYO"]
[null,"OCROS"]
[null,"PALLASCA"]
[null,"POMABAMBA"]
[null,"RECUAY"]
[null,"SANTA"]
[null,"SIHUAS"]
[null,"YUNGAY",null,null,null,null,null,null,null,null,null,null,null,null,null,null,"DEPARTAMENTO","PASCO"]
[]
[null,null,null,null,null,null,null,null,null,null,null,null,null,null,null,null,"PROVINCIA","DANIEL A. CARRIÓN"]

{"sheet":"Hoja10","index":8,"n_rows":44,"n_cols":195,"rows_kept":44,"cut":false,"hidden":true,"merged":[]}
["CHACHAPOYAS","BAGUA","BONGARÁ","CONDORCANQUI","LUYA","RODRÍGUEZ DE MENDOZA","UTCUBAMBA","HUARAZ","AIJA","ANTONIO RAYMONDI","ASUNCIÓN","BOLOGNESI","CARHUAZ","CARLOS FERMÍN FITZCARRALD","CASMA","CORONGO","HUARI","HUARMEY","HUAYLAS","MARISCAL LUZURIAGA","OCROS","PALLASCA","POMABAMBA","RECUAY","SANTA","SIHUAS","YUNGAY","ABANCAY","ANDAHUAYLAS","ANTABAMBA","AYMARAES","COTABAMBAS","CHINCHEROS","GRAU","AREQUIPA","CAMANÁ","CARAVELÍ","CASTILLA","CAYLLOMA","CONDESUYOS","ISLAY","LA UNIÓN","HUAMANGA","CANGALLO","HUANCA SANCOS","HUANTA","LA MAR","LUCANAS","PARINACOCHAS","PAUCAR DEL SARA SARA","SUCRE","VÍCTOR FAJARDO","VILCAS HUAMÁN","CAJAMARCA","CAJABAMBA","CELENDÍN","CHOTA","CONTUMAZÁ","CUTERVO","HUALGAYOC","JAÉN","SAN IGNACIO","SAN MARCOS","SAN MIGUEL","SAN PABLO","SANTA CRUZ","CALLAO","CUSCO","ACOMAYO","ANTA","CALCA","CANAS","CANCHIS","CHUMBIVILCAS","ESPINAR","LA CONVENCIÓN","PARURO","PAUCARTAMBO","QUISPICANCHI","URUBAMBA","HUANCAVELICA","ACOBAMBA","ANGARAES","CASTROVIRREYNA","CHURCAMPA","HUAYTARÁ","TAYACAJA","HUANUCO","AMBO","DOS DE MAYO","HUACAYBAMBA","HUAMALIES","LEONCIO PRADO","MARAÑÓN","PACHITEA","PUERTO INCA","LAURICOCHA","YAROWILCA","ICA","CHINCHA","NAZCA","PALPA","PISCO","HUANCAYO","CONCEPCIÓN","CHANCHAMAYO","JAUJA","JUNIN","SATIPO ","TARMA","YAULI","CHUPACA","TRUJILLO","ASCOPE","BOLÍVAR","CHEPÉN","JULCÁN","OTUZCO","PACASMAYO","PATAZ","SÁNCHEZ CARRIÓN","SANTIAGO DE CHUCO","GRAN CHIMÚ","VIRÚ","CHICLAYO","FERREÑAFE","LAMBAYEQUE","LIMA","BARRANCA","CAJATAMBO","CANTA","CAÑETE","HUARAL","HUAROCHIRI","HUAURA","OYÓN","YAUYOS","MAYNAS","ALTO AMAZONAS","LORETO","MARISCAL RAMÓN CASTILLA","REQUENA","UCAYALI","DATEM DEL MARAÑÓN","TAMBOPATA","MANÚ","TAHUAMANÚ","MARISCAL NIETO","GENERAL SÁNCHEZ CERRO","ILO","PASCO","DANIEL A. CARRIÓN","OXAPAMPA","PIURA","AYABACA","HUANCABAMBA","MORROPÓN","PAITA","SULLANA","TALARA","SECHURA","PUNO","AZÁNGARO","CARABAYA","CHUCUITO","EL COLLAO","HUANCANÉ","LAMPA","MELGAR","MOHO","SAN ANTONIO DE PUTINA","SAN ROMÁN","SANDIA","YUNGUYO","MOYOBAMBA","BELLAVISTA","EL DORADO","HUALLAGA","LAMAS","MARISCAL CÁCERES","PICOTA","RIOJA","SAN_MARTIN","TOCACHE","TACNA","CANDARAVE","JORGE BASADRE","TARATA","TUMBES","CONTRALMIRANTE VILLAR","ZARUMILLA","CORONEL PORTILLO","ATALAYA","PADRE ABAD","PURÚS"]
[" CHACHAPOYAS "," BAGUA "," JUMBILLA "," NIEVA "," LAMUD "," SAN NICOLAS "," BAGUA GRANDE "," HUARAZ "," AIJA "," LLAMELLIN "," CHACAS "," CHIQUIAN "," CARHUAZ "," SAN LUIS "," CASMA "," CORONGO "," HUARI "," HUARMEY "," CARAZ "," PISCOBAMBA "," OCROS "," CABANA "," POMABAMBA "," RECUAY "," CHIMBOTE "," SIHUAS "," YUNGAY "," ABANCAY "," ANDAHUAYLAS "," ANTABAMBA "," CHALHUANCA "," TAMBOBAMBA "," CHINCHEROS "," CHUQUIBAMBILLA "," AREQUIPA "," CAMANA "," CARAVELI "," APLAO "," CHIVAY "," CHUQUIBAMBA "," MOLLENDO "," COTAHUASI "," AYACUCHO "," CANGALLO "," SANCOS "," HUANTA "," SAN MIGUEL "," PUQUIO "," CORACORA "," PAUSA "," QUEROBAMBA "," HUANCAPI "," VILCAS HUAMAN "," CAJAMARCA "," CAJABAMBA "," CELENDIN "," CHOTA "," CONTUMAZA "," CUTERVO "," BAMBAMARCA "," JAEN "," SAN IGNACIO "," PEDRO GALVEZ "," SAN MIGUEL "," SAN PABLO "," SANTA CRUZ "," CALLAO "," MI PERÚ "," WANCHAQ "," SANGARARA "," ZURITE "," YANAOCA "," SICUANI "," SANTO TOMAS "," ESPINAR "," SANTA ANA "," PARURO "," PAUCARTAMBO "," URCOS "," URUBAMBA "," HUANCAVELICA "," ACOBAMBA "," LIRCAY "," CASTROVIRREYNA "," CHURCAMPA "," HUAYTARA "," PAMPAS "," HUANUCO "," AMBO "," LA UNION "," HUACAYBAMBA "," LLATA "," RUPA-RUPA "," HUACRACHUCO "," PANAO "," PUERTO INCA "," JESUS "," CHAVINILLO "," ICA "," CHINCHA ALTA "," NAZCA "," PALPA "," PISCO "," HUANCAYO "," VIQUES "," CHANCHAMAYO "," JAUJA "," JUNIN "," SATIPO "," TARMA "," LA OROYA "," CHUPACA "," TRUJILLO "," ASCOPE "," BOLIVAR "," CHEPEN "," JULCAN "," OTUZCO "," SAN PEDRO DE LLOC "," TAYABAMBA "," HUAMACHUCO "," SANTIAGO DE CHUCO "," CASCAS "," VIRU "," CHICLAYO "," FERREÑAFE "," LAMBAYEQUE "," LIMA "," BARRANCA "," CAJATAMBO "," CANTA "," SAN VICENTE DE CAÑETE "," HUARAL "," MATUCANA "," HUACHO "," OYON "," YAUYOS "," IQUITOS "," YURIMAGUAS "," NAUTA "," RAMON CASTILLA "," REQUENA "," CONTAMANA "," BARRANCA "," TAMBOPATA "," MANU "," IÑAPARI "," MOQUEGUA "," OMATE "," ILO "," CHAUPIMARCA "," YANAHUANCA "," OXAPAMPA "," PIURA "," AYABACA "," HUANCABAMBA "," MORROPON "," PAITA "," SULLANA "," PARIÑAS "," SECHURA "," PUNO "," AZANGARO "," MACUSANI "," JULI "," ILAVE "," HUANCANE "," LAMPA "," AYAVIRI "," MOHO "," PUTINA "," JULIACA "," SANDIA "," YUNGUYO "," MOYOBAMBA "," BELLAVISTA "," SAN JOSE DE SISA "," SAPOSOA "," LAMAS "," JUANJUI "," PICOTA "," RIOJA "," TARAPOTO "," TOCACHE "," TACNA "," CANDARAVE "," LOCUMBA "," TARATA "," TUMBES "," ZORRITOS "," ZARUMILLA "," CALLERIA "," RAYMONDI "," PADRE ABAD "," PURUS "]
[" ASUNCION "," ARAMANGO "," CHISQUILLA "," EL CENEPA "," CAMPORREDONDO "," CHIRIMOTO "," CAJARURO "," COCHABAMBA "," CORIS "," ACZO "," ACOCHACA "," ABELARDO PARDO LEZAMETA "," ACOPAMPA "," SAN NICOLAS "," BUENA VISTA ALTA "," ACO "," ANRA "," COCHAPETI "," HUALLANCA "," CASCA "," ACAS "," BOLOGNESI "," HUAYLLAN "," CATAC "," CACERES DEL PERU "," ACOBAMBA "," CASCAPARA "," CHACOCHE "," ANDARAPA "," EL ORO "," CAPAYA "," COTABAMBAS "," ANCO_HUALLO "," CURPAHUASI "," ALTO SELVA ALEGRE "," JOSE MARIA QUIMPER "," ACARI "," ANDAGUA "," ACHOMA "," ANDARAY "," COCACHACRA "," ALCA "," ACOCRO "," CHUSCHI "," CARAPO "," AYAHUANCO "," ANCO "," AUCARA "," CHUMPI "," COLTA "," BELEN "," ALCAMENCA "," ACCOMARCA "," ASUNCION "," CACHACHI "," CHUMUCH "," ANGUIA "," CHILETE "," CALLAYUC "," CHUGUR "," BELLAVISTA "," CHIRINOS "," CHANCAY "," BOLIVAR "," SAN BERNARDINO "," ANDABAMBA "," BELLAVISTA "," CUSCO "," ACOMAYO "," ANTA "," CALCA "," CHECCA "," CHECACUPE "," CAPACMARCA "," CONDOROMA "," ECHARATE "," ACCHA "," CAICAY "," ANDAHUAYLILLAS "," CHINCHERO "," ACOBAMBILLA "," ANDABAMBA "," ANCHONGA "," ARMA "," ANCO "," AYAVI "," ACOSTAMBO "," AMARILIS "," CAYNA "," CHUQUIS "," CANCHABAMBA "," ARANCAY "," DANIEL ALOMIAS ROBLES "," CHOLON "," CHAGLLA "," CODO DEL POZUZO "," BAÑOS "," CAHUAC "," LA TINGUIÑA "," ALTO LARAN "," CHANGUILLO "," LLIPATA "," HUANCANO "," CARHUACALLANGA "," CONCEPCION "," PERENE "," ACOLLA "," CARHUAMAYO "," COVIRIALI "," ACOBAMBA "," CHACAPALPA "," AHUAC "," EL PORVENIR "," CHICAMA "," BAMBAMARCA "," PACANGA "," CALAMARCA "," AGALLPAMPA "," GUADALUPE "," BULDIBUYO "," CHUGAY "," ANGASMARCA "," LUCMA "," CHAO "," CHONGOYAPE "," CAÑARIS "," CHOCHOPE ","ANCON "," PARAMONGA "," COPA "," ARAHUAY "," ASIA "," ATAVILLOS ALTO "," ANTIOQUIA "," AMBAR "," ANDAJES "," ALIS "," ALTO NANAY "," BALSAPUERTO "," PARINARI "," PEBAS "," ALTO TAPICHE "," INAHUAYA "," CAHUAPANAS "," INAMBARI "," FITZCARRALD "," IBERIA "," CARUMAS "," CHOJATA "," EL ALGARROBAL "," HUACHON "," CHACAYAN "," CHONTABAMBA "," CASTILLA "," FRIAS "," CANCHAQUE "," SALITRAL "," AMOTAPE "," BELLAVISTA "," EL ALTO "," BELLAVISTA DE LA UNION "," ACORA "," ACHAYA "," AJOYANI "," DESAGUADERO "," CAPAZO "," COJATA "," CABANILLA "," ANTAUTA "," CONIMA "," ANANEA "," CABANA "," CUYOCUYO "," ANAPIA "," CALZADA "," ALTO BIAVO "," AGUA BLANCA "," ALTO SAPOSOA "," ALONSO DE ALVARADO "," CAMPANILLA "," BUENOS AIRES "," AWAJUN "," ALBERTO LEVEAU "," NUEVO PROGRESO "," ALTO DE LA ALIANZA "," CAIRANI "," ILABAYA "," HEROES ALBARRACIN "," CORRALES "," CASITAS "," AGUAS VERDES "," CAMPOVERDE "," SEPAHUA "," IRAZOLA "]
[" BALSAS "," COPALLIN "," CHURUJA "," RIO SANTIAGO "," COCABAMBA "," COCHAMAL "," CUMBA "," COLCABAMBA "," HUACLLAN "," CHACCHO ",null," ANTONIO RAYMONDI "," AMASHCA "," YAUYA "," COMANDANTE NOEL "," BAMBAS "," CAJAY "," CULEBRAS "," HUATA "," ELEAZAR GUZMAN BARRON "," CAJAMARQUILLA "," CONCHUCOS "," PAROBAMBA "," COTAPARACO "," COISHCO "," ALFONSO UGARTE "," MANCOS "," CIRCA "," CHIARA "," HUAQUIRCA "," CARAYBAMBA "," COYLLURQUI "," COCHARCAS "," GAMARRA "," CAYMA "," MARIANO NICOLAS VALCARCEL "," ATICO "," AYO "," CABANACONDE "," CAYARANI "," DEAN VALDIVIA "," CHARCANA "," ACOS VINCHOS "," LOS MOROCHUCOS "," SACSAMARCA "," HUAMANGUILLA "," AYNA "," CABANA "," CORONEL CASTAÑEDA "," CORCULLA "," CHALCOS "," APONGO "," CARHUANCA "," CHETILLA "," CONDEBAMBA "," CORTEGANA "," CHADIN "," CUPISNIQUE "," CHOROS "," HUALGAYOC "," CHONTALI "," HUARANGO "," EDUARDO VILLANUEVA "," CALQUIS "," SAN LUIS "," CATACHE "," CARMEN DE LA LEGUA Y REYNOSO "," CCORCA "," ACOPIA "," ANCAHUASI "," COYA "," KUNTURKANKI "," COMBAPATA "," CHAMACA "," COPORAQUE "," HUAYOPATA "," CCAPI "," CHALLABAMBA "," CAMANTI "," HUAYLLABAMBA "," ACORIA "," ANTA "," CALLANMARCA "," AURAHUA "," CHINCHIHUASI "," CORDOVA "," ACRAQUIA "," CHINCHAO "," COLPAS "," MARIAS "," COCHABAMBA "," CHAVIN DE PARIARCA "," HERMILIO VALDIZAN "," SAN BUENAVENTURA "," MOLINO "," HONORIA "," JIVIA "," CHACABAMBA "," LOS AQUIJES "," CHAVIN "," EL INGENIO "," RIO GRANDE "," HUMAY "," CHACAPAMPA "," ACO "," PICHANAQUI "," APATA "," ONDORES "," LLAYLLA "," HUARICOLCA "," HUAY-HUAY "," CHONGOS BAJO "," FLORENCIA DE MORA "," CHOCOPE "," CONDORMARCA "," PUEBLO NUEVO "," CARABAMBA "," CHARAT "," JEQUETEPEQUE "," CHILLIA "," COCHORCO "," CACHICADAN "," COMPIN "," GUADALUPITO "," ETEN "," INCAHUASI "," ILLIMO ","ATE "," PATIVILCA "," GORGOR "," HUAMANTANGA "," CALANGO "," ATAVILLOS BAJO "," CALLAHUANCA "," CALETA DE CARQUIN "," CAUJUL "," AYAUCA "," FERNANDO LORES "," JEBEROS "," TIGRE "," YAVARI "," CAPELO "," PADRE MARQUEZ "," MANSERICHE "," LAS PIEDRAS "," MADRE DE DIOS "," TAHUAMANU "," CUCHUMBAYA "," COALAQUE "," PACOCHA "," HUARIACA "," GOYLLARISQUIZGA "," HUANCABAMBA "," CATACAOS "," JILILI "," EL CARMEN DE LA FRONTERA "," SAN JUAN DE BIGOTE "," ARENAL "," IGNACIO ESCUDERO "," LA BREA "," BERNAL "," AMANTANI "," ARAPA "," AYAPATA "," HUACULLANI "," PILCUYO "," HUATASANI "," CALAPUJA "," CUPI "," HUAYRAPATA "," PEDRO VILCA APAZA "," CABANILLAS "," LIMBANI "," COPANI "," HABANA "," BAJO BIAVO "," SAN MARTIN "," EL ESLABON "," BARRANQUITA "," HUICUNGO "," CASPISAPA "," ELIAS SOPLIN VARGAS "," CACATACHI "," POLVORA "," CALANA "," CAMILACA "," ITE "," ESTIQUE "," LA CRUZ "," CANOAS DE PUNTA SAL "," MATAPALO "," IPARIA "," TAHUANIA "," CURIMANA "]
[" CHETO "," EL PARCO "," COROSHA ",null," COLCAMAR "," HUAMBO "," EL MILAGRO "," HUANCHAY "," LA MERCED "," CHINGAS ",null," AQUIA "," ANTA ",null," YAUTAN "," CUSCA "," CHAVIN DE HUANTAR "," HUAYAN "," HUAYLAS "," FIDEL OLIVAS ESCUDERO "," CARHUAPAMPA "," HUACASCHUQUE "," QUINUABAMBA "," HUAYLLAPAMPA "," MACATE "," CASHAPAMPA "," MATACOTO "," CURAHUASI "," HUANCARAMA "," JUAN ESPINOZA MEDRANO "," CHAPIMARCA "," HAQUIRA "," HUACCANA "," HUAYLLATI "," CERRO COLORADO "," MARISCAL CACERES "," ATIQUIPA "," CHACHAS "," CALLALLI "," CHICHAS "," ISLAY "," HUAYNACOTAS "," CARMEN ALTO "," MARIA PARADO DE BELLIDO "," SANTIAGO DE LUCANAMARCA "," IGUAIN "," CHILCAS "," CARMEN SALCEDO "," PACAPAUSA "," LAMPA "," CHILCAYOC "," ASQUIPATA "," CONCEPCION "," COSPAN "," SITACOCHA "," HUASMIN "," CHIGUIRIP "," GUZMANGO "," CUJILLO ",null," COLASAY "," LA COIPA "," GREGORIO PITA "," CATILLUC "," TUMBADEN "," CHANCAYBAÑOS "," LA PERLA "," POROY "," ACOS "," CACHIMAYO "," LAMAY "," LANGUI "," MARANGANI "," COLQUEMARCA "," OCORURO "," MARANURA "," COLCHA "," COLQUEPATA "," CCARHUAYO "," MACHUPICCHU "," CONAYCA "," CAJA "," CCOCHACCASA "," CAPILLAS "," EL CARMEN "," HUAYACUNDO ARMA "," AHUAYCHA "," CHURUBAMBA "," CONCHAMARCA "," PACHAS "," PINRA "," JACAS GRANDE "," JOSE CRESPO Y CASTILLO "," LA MORADA"," UMARI "," TOURNAVISTA "," QUEROPALCA "," APARICIO POMARES "," OCUCAJE "," CHINCHA BAJA "," MARCONA "," SANTA CRUZ "," INDEPENDENCIA "," CHICCHE "," ANDAMARCA "," SAN LUIS DE SHUARO "," ATAURA "," ULCUMAYO "," MAZAMARI "," HUASAHUASI "," MARCAPOMACOCHA "," HUACHAC "," HUANCHACO "," MAGDALENA DE CAO "," LONGOTEA ",null," HUASO "," HUARANCHAL "," PACASMAYO "," HUANCASPATA "," CURGOS "," MOLLEBAMBA "," SAYAPULLO ",null," ETEN PUERTO "," MANUEL ANTONIO MESONES MURO "," JAYANCA ","BARRANCO "," SUPE "," HUANCAPON "," HUAROS "," CERRO AZUL "," AUCALLAMA "," CARAMPOMA "," CHECRAS "," COCHAMARCA "," AYAVIRI "," INDIANA "," LAGUNAS "," TROMPETEROS "," SAN PABLO "," EMILIO SAN MARTIN "," PAMPA HERMOSA "," MORONA "," LABERINTO "," HUEPETUHE ",null," SAMEGUA "," ICHUÑA ",null," HUAYLLAY "," PAUCAR "," PALCAZU "," CURA MORI "," LAGUNAS "," HUARMACA "," SANTA CATALINA DE MOSSA "," COLAN "," LANCONES "," LOBITOS "," CRISTO NOS VALGA "," ATUNCOLLA "," ASILLO "," COASA "," KELLUYO "," SANTA ROSA "," INCHUPALLA "," NICASIO "," LLALLI "," TILALI "," QUILCAPUNCU "," CARACOTO "," PATAMBUCO "," CUTURAPI "," JEPELACIO "," HUALLAGA "," SANTA ROSA "," PISCOYACU "," CAYNARACHI "," PACHIZA "," PILLUANA "," NUEVA CAJAMARCA "," CHAZUTA "," SHUNTE "," CIUDAD NUEVA "," CURIBAYA ",null," ESTIQUE-PAMPA "," PAMPAS DE HOSPITAL ",null," PAPAYAL "," MASISEA "," YURUA "]
[" CHILIQUIN "," IMAZA "," CUISPES ",null," CONILA "," LIMABAMBA "," JAMALCA "," INDEPENDENCIA "," SUCCHA "," MIRGAS ",null," CAJACAY "," ATAQUERO ",null,null," LA PAMPA "," HUACACHI "," MALVAS "," MATO "," LLAMA "," COCHAS "," HUANDOVAL ",null," LLACLLIN "," MORO "," CHINGALPO "," QUILLO "," HUANIPACA "," HUANCARAY "," OROPESA "," COLCABAMBA "," MARA "," OCOBAMBA "," MAMARA "," CHARACATO "," NICOLAS DE PIEROLA "," BELLA UNION "," CHILCAYMARCA "," CAYLLOMA "," IRAY "," MEJIA "," PAMPAMARCA "," CHIARA "," PARAS ",null," LURICOCHA "," CHUNGUI "," CHAVIÑA "," PULLO "," MARCABAMBA "," HUACAÑA "," CANARIA "," HUAMBALPA "," ENCAÑADA ",null," JORGE CHAVEZ "," CHIMBAN "," SAN BENITO "," LA RAMADA ",null," HUABAL "," NAMBALLE "," ICHOCAN "," EL PRADO ",null," LA ESPERANZA "," LA PUNTA "," SAN JERONIMO "," MOSOC LLACTA "," CHINCHAYPUJIO "," LARES "," LAYO "," PITUMARCA "," LIVITACA "," PALLPATA "," OCOBAMBA "," HUANOQUITE "," HUANCARANI "," CCATCA "," MARAS "," CUENCA "," MARCAS "," CHINCHO "," CHUPAMARCA "," LA MERCED "," LARAMARCA "," COLCABAMBA "," MARGOS "," HUACAR "," QUIVILLA ",null," JIRCAN "," LUYANDO "," SANTA ROSA DE ALTO YANAJANCA",null," YUYAPICHIS "," RONDOS "," JACAS CHICO "," PACHACUTEC "," EL CARMEN "," VISTA ALEGRE "," TIBILLO "," PARACAS "," CHILCA "," CHAMBARA "," SAN RAMON "," CANCHAYLLO ",null," PAMPA HERMOSA "," LA UNION "," MOROCOCHA "," HUAMANCACA CHICO "," LA ESPERANZA "," PAIJAN "," UCHUMARCA ",null,null," LA CUESTA "," SAN JOSE "," HUAYLILLAS "," MARCABAL "," MOLLEPATA ",null,null," JOSE LEONARDO ORTIZ "," PITIPO "," MOCHUMI ","BREÑA "," SUPE PUERTO "," MANAS "," LACHAQUI "," CHILCA "," CHANCAY "," CHICLA "," HUALMAY "," NAVAN "," AZANGARO "," LAS AMAZONAS "," SANTA CRUZ "," URARINAS ",null," MAQUIA "," SARAYACU "," PASTAZA ",null,null,null," SAN CRISTOBAL "," LA CAPILLA ",null," NINACACA "," SAN PEDRO DE PILLAO "," POZUZO "," EL TALLAN "," MONTERO "," LALAQUIZ "," SANTO DOMINGO "," LA HUACA "," MARCAVELICA "," LOS ORGANOS "," VICE "," CAPACHICA "," CAMINACA "," CORANI "," PISACOMA "," CONDURIRI "," PUSI "," OCUVIRI "," MACARI ",null," SINA ",null," PHARA "," OLLARAYA "," SORITOR "," SAN PABLO "," SHATOJA "," SACANCHE "," CUÑUMBUQUI "," PAJARILLO "," PUCACACA "," PARDO MIGUEL "," CHIPURANA "," UCHIZA "," INCLAN "," HUANUARA ",null," SITAJARA "," SAN JACINTO ",null,null," YARINACOCHA "]
[" CHUQUIBAMBA "," LA PECA "," FLORIDA ",null," INGUILPATA "," LONGAR "," LONYA GRANDE "," JANGAS ",null," SAN JUAN DE RONTOY ",null," CANIS "," MARCARA ",null,null," YANAC "," HUACCHIS ",null," PAMPAROMAS "," LLUMPA "," CONGAS "," LACABAMBA ",null," MARCA "," NEPEÑA "," HUAYLLABAMBA "," RANRAHIRCA "," LAMBRAMA "," HUAYANA "," PACHACONAS "," COTARUSE "," CHALLHUAHUACHO "," ONGOY "," MICAELA BASTIDAS "," CHIGUATA "," OCOÑA "," CAHUACHO "," CHOCO "," COPORAQUE "," RIO GRANDE "," PUNTA DE BOMBON "," PUYCA "," OCROS "," TOTOS ",null," SANTILLANA "," LUIS CARRANZA "," CHIPAO "," PUYUSCA "," OYOLO "," MORCOLLA "," CAYARA "," INDEPENDENCIA "," JESUS ",null," JOSE GALVEZ "," CHOROPAMPA "," SANTA CRUZ DE TOLED "," PIMPINGOS ",null," LAS PIRIAS "," SAN JOSE DE LOURDES "," JOSE MANUEL QUIROZ "," LA FLORIDA ",null," NINABAMBA "," VENTANILLA "," SAN SEBASTIAN "," POMACANCHI "," HUAROCONDO "," PISAC "," PAMPAMARCA "," SAN PABLO "," LLUSCO "," PICHIGUA "," QUELLOUNO "," OMACHA "," KOSÑIPATA "," CUSIPATA "," OLLANTAYTAMBO "," HUACHOCOLPA "," PAUCARA "," CONGALLA "," COCAS "," LOCROJA "," OCOYO "," DANIEL HERNANDEZ "," QUISQUI "," SAN FRANCISCO "," RIPAN ",null," MIRAFLORES "," MARIANO DAMASO BERAUN ",null,null,null," SAN FRANCISCO DE ASIS "," OBAS "," PARCONA "," GROCIO PRADO ",null,null," SAN ANDRES "," CHONGOS ALTO "," COCHAS "," VITOC "," CURICACA ",null," PANGOA "," PALCA "," PACCHA "," SAN JUAN DE YSCOS "," LAREDO "," RAZURI "," UCUNCHA ",null,null," MACHE ",null," HUAYO "," SANAGORAN "," QUIRUVILCA ",null,null," LA VICTORIA "," PUEBLO NUEVO "," MORROPE ","CARABAYLLO ",null,null," SAN BUENAVENTURA "," COAYLLO "," IHUARI "," CUENCA "," HUAURA "," PACHANGARA "," CACRA "," MAZAN "," TENIENTE CESAR LOPEZ ROJAS ",null,null," PUINAHUA "," VARGAS GUERRA "," ANDOAS ",null,null,null," TORATA "," LLOQUE ",null," PALLANCHACRA "," SANTA ANA DE TUSI "," PUERTO BERMUDEZ "," LA ARENA "," PACAIPAMPA "," SAN MIGUEL DE EL FAIQUE "," YAMANGO "," TAMARINDO "," MIGUEL CHECA "," MANCORA "," RINCONADA LLICUAR "," CHUCUITO "," CHUPA "," CRUCERO "," POMATA ",null," ROSASPATA "," PALCA "," NUÑOA ",null,null,null," QUIACA "," TINICACHI "," YANTALO "," SAN RAFAEL ",null," TINGO DE SAPOSOA "," PINTO RECODO ",null," SAN CRISTOBAL "," POSIC "," EL PORVENIR ",null," PACHIA "," QUILAHUANI ",null," SUSAPAYA "," SAN JUAN DE LA VIRGEN ",null,null," NUEVA REQUENA "]
[" GRANADA ",null," JAZAN ",null," LONGUITA "," MARISCAL BENAVIDES "," YAMON "," LA LIBERTAD ",null,null,null," COLQUIOC "," PARIAHUANCA ",null,null," YUPAN "," HUACHIS ",null," PUEBLO LIBRE "," LUCMA "," LLIPA "," LLAPO ",null," PAMPAS CHICO "," SAMANCO "," QUICHES "," SHUPLUY "," PICHIRHUA "," KISHUARA "," SABAINO "," HUAYLLO ",null," URANMARCA "," PATAYPAMPA "," JACOBO HUNTER "," QUILCA "," CHALA "," HUANCARQUI "," HUAMBO "," SALAMANCA ",null," QUECHUALLA "," PACAYCASA ",null,null," SIVIA "," SANTA ROSA "," HUAC-HUAS "," SAN FRANCISCO DE RAVACAYCO "," PARARCA "," PAICO "," COLCA "," SAURAMA "," LLACANORA ",null," MIGUEL IGLESIAS "," COCHABAMBA "," TANTARICA "," QUEROCOTILLO ",null," POMAHUACA "," TABACONAS "," JOSE SABOGAL "," LLAPA ",null," PULAN ",null," SANTIAGO "," RONDOCAN "," LIMATAMBO "," SAN SALVADOR "," QUEHUE "," SAN PEDRO "," QUIÑOTA "," SUYCKUTAMBO "," KIMBIRI "," PACCARITAMBO ",null," HUARO "," YUCAY "," HUAYLLAHUARA "," POMACOCHA "," HUANCA-HUANCA "," HUACHOS "," PAUCARBAMBA "," PILPICHACA "," HUACHOCOLPA "," SAN FRANCISCO DE CAYRAN "," SAN RAFAEL "," SHUNQUI ",null," MONZON "," PUCAYACU",null,null,null," SAN MIGUEL DE CAURI "," PAMPAMARCA "," PUEBLO NUEVO "," PUEBLO NUEVO ",null,null," SAN CLEMENTE "," CHUPURO "," COMAS ",null," EL MANTARO ",null," RIO NEGRO "," PALCAMAYO "," SANTA BARBARA DE CARHUACAYAN "," SAN JUAN DE JARPA "," MOCHE "," SANTIAGO DE CAO ",null,null,null," PARANDAY ",null," ONGON "," SARIN "," SANTA CRUZ DE CHUCA ",null,null," LAGUNAS ",null," MOTUPE ","CHACLACAYO ",null,null," SANTA ROSA DE QUIVES "," IMPERIAL "," LAMPIAN "," HUACHUPAMPA "," LEONCIO PRADO ",null," CARANIA "," NAPO ",null,null,null," SAQUENA ",null,null,null,null,null,null," MATALAQUE ",null," PAUCARTAMBO "," TAPUC "," VILLA RICA "," LA UNION "," PAIMAS "," SONDOR ",null," VICHAYAL "," QUERECOTILLO ",null,null," COATA "," JOSE DOMINGO CHOQUEHUANCA "," ITUATA "," ZEPITA ",null," TARACO "," PARATIA "," ORURILLO ",null,null,null," SAN JUAN DEL ORO "," UNICACHI ",null,null,null,null," RUMISAPA ",null," SAN HILARION "," SAN FERNANDO "," HUIMBAYOC ",null," PALCA ",null,null," TARUCACHI ",null,null,null," MANANTAY "]
[" HUANCAS ",null," RECTA ",null," LONYA CHICO "," MILPUC ",null," OLLEROS ",null,null,null," HUALLANCA "," SAN MIGUEL DE ACO ",null,null,null," HUANTAR ",null," SANTA CRUZ "," MUSGA "," SAN CRISTOBAL DE RAJAN "," PALLASCA ",null," PARARIN "," SANTA "," RAGASH "," YANAMA "," SAN PEDRO DE CACHORA "," PACOBAMBA ",null," JUSTO APU SAHUARAURA ",null," RANRACANCHA "," PROGRESO "," LA JOYA "," SAMUEL PASTOR "," CHAPARRA "," MACHAGUAY "," HUANCA "," YANAQUIHUA ",null," SAYLA "," QUINUA ",null,null," LLOCHEGUA "," TAMBO "," LARAMATE "," UPAHUACHO "," SAN JAVIER DE ALPABAMBA "," SAN PEDRO DE LARCAY "," HUAMANQUIQUIA "," VISCHONGO "," LOS BAÑOS DEL INCA ",null," OXAMARCA "," CONCHAN "," YONAN "," SAN ANDRES DE CUTERVO ",null," PUCARA ",null,null," NANCHOC ",null," SAUCEPAMPA ",null," SAYLLA ",null," MOLLEPATA "," TARAY "," TUPAC AMARU "," TINTA "," VELILLE "," ALTO PICHIGUA "," SANTA TERESA "," PILLPINTO ",null," LUCRE ",null," IZCUCHACA "," ROSARIO "," HUAYLLAY GRANDE "," HUAMATAMBO "," SAN MIGUEL DE MAYOCC "," QUERCO "," HUARIBAMBA "," SAN PEDRO DE CHAULAN "," TOMAY KICHWA "," SILLAPATA ",null," PUNCHAO "," CASTILLO GRANDE",null,null,null,null," CHORAS "," SALAS "," SAN JUAN DE YANAC ",null,null," TUPAC AMARU INCA "," COLCA "," HEROINAS TOLEDO ",null," HUAMALI ",null," RIO TAMBO "," SAN PEDRO DE CAJAS "," SANTA ROSA DE SACCO "," TRES DE DICIEMBRE "," POROTO "," CASA GRANDE ",null,null,null," SALPO ",null," PARCOY "," SARTIMBAMBA "," SITABAMBA ",null,null," MONSEFU ",null," OLMOS "," CHORRILLOS ",null,null,null," LUNAHUANA "," PACARAOS "," HUANZA "," PACCHO ",null," CATAHUASI "," PUNCHANA ",null,null,null," SOPLIN ",null,null,null,null,null,null," PUQUINA ",null," SAN FRANCISCO DE ASIS DE YARUSYACAN "," VILCABAMBA ",null," LAS LOMAS "," SAPILLICA "," SONDORILLO ",null,null," SALITRAL ",null,null," HUATA "," MUÑANI "," OLLACHEA ",null,null," VILQUE CHICO "," PUCARA "," SANTA ROSA ",null,null,null," YANAHUAYA ",null,null,null,null,null," SAN ROQUE DE CUMBAZA ",null," SHAMBOYACU "," YORONGOS "," JUAN GUERRA ",null," POCOLLAY ",null,null," TICACO "]
[" LA JALCA ",null," SAN CARLOS ",null," LUYA "," OMIA ",null," PAMPAS ",null,null,null," HUASTA "," SHILLA ",null,null,null," MASIN ",null," SANTO TORIBIO ",null," SAN PEDRO "," PAMPAS ",null," TAPACOCHA "," NUEVO CHIMBOTE "," SAN JUAN ",null," TAMBURCO "," PACUCHA ",null," LUCRE ",null,null," SAN ANTONIO "," MARIANO MELGAR ",null," HUANUHUANU "," ORCOPAMPA "," ICHUPAMPA ",null,null," TAURIA "," SAN JOSE DE TICLLAS ",null,null,null,null," LEONCIO PRADO ",null," SAN JOSE DE USHUA "," SAN SALVADOR DE QUIJE "," HUANCARAYLLA ",null," MAGDALENA ",null," SOROCHUCO "," HUAMBOS ",null," SAN JUAN DE CUTERVO ",null," SALLIQUE ",null,null," NIEPOS ",null," SEXI ",null,null,null," PUCYURA "," YANATILE ",null,null,null,null," VILCABAMBA "," YAURISQUE ",null," MARCAPATA ",null," LARIA ",null," JULCAMARCA "," MOLLEPAMPA "," SAN PEDRO DE CORIS "," QUITO-ARMA "," ÑAHUIMPUQUIO "," SANTA MARIA DEL VALLE ",null," YANAS ",null," PUÑOS "," PUEBLO NUEVO ",null,null,null,null,null," SAN JOSE DE LOS MOLINOS "," SAN PEDRO DE HUACARPANA ",null,null,null," CULLHUAS "," MANZANARES ",null," HUARIPAMPA ",null,null," TAPO "," SUITUCANCHA "," YANACANCHA "," SALAVERRY ",null,null,null,null," SINSICAP ",null," PATAZ ",null,null,null,null," NUEVA ARICA ",null," PACORA "," CIENEGUILLA ",null,null,null," MALA "," SAN MIGUEL DE ACOS "," HUAROCHIRI "," SANTA LEONOR ",null," CHOCOS "," PUTUMAYO ",null,null,null," TAPICHE ",null,null,null,null,null,null," QUINISTAQUILLAS ",null," SIMON BOLIVAR ",null,null," TAMBO GRANDE "," SICCHEZ "," CHULUCANAS ",null,null,null,null,null," MAÑAZO "," POTONI "," SAN GABAN ",null,null,null," SANTA LUCIA "," UMACHIRI ",null,null,null," ALTO INAMBARI ",null,null,null,null,null," SHANAO ",null," TINGO DE PONASA "," YURACYACU "," LA BANDA DE SHILCAYO ",null," SAMA "]
[" LEIMEBAMBA ",null," SHIPASBAMBA ",null," LUYA VIEJO "," SANTA ROSA ",null," PARIACOTO ",null,null,null," HUAYLLACAYAN "," TINCO ",null,null,null," PAUCAS ",null," YURACMARCA ",null," SANTIAGO DE CHILCAS "," SANTA ROSA ",null," TICAPAMPA ",null," SICSIBAMBA ",null,null," PAMPACHIRI ",null," POCOHUANCA ",null,null," SANTA ROSA "," MIRAFLORES ",null," JAQUI "," PAMPACOLCA "," LARI ",null,null," TOMEPAMPA "," SAN JUAN BAUTISTA ",null,null,null,null," LLAUTA ",null," SARA SARA "," SANTIAGO DE PAUCARAY "," HUAYA ",null," MATARA ",null," SUCRE "," LAJAS ",null," SAN LUIS DE LUCMA ",null," SAN FELIPE ",null,null," SAN GREGORIO ",null," UTICYACU ",null,null,null,null,null,null,null,null,null," PICHARI ",null,null," OCONGATE ",null," MANTA ",null," SAN ANTONIO DE ANTAPARCO "," SAN JUAN "," PACHAMARCA "," SAN ANTONIO DE CUSICANCHA "," PAZOS "," YARUMAYO ",null,null,null," SINGA "," SANTO DOMINGO DE ANDA",null,null,null,null,null," SAN JUAN BAUTISTA "," SUNAMPE ",null,null,null," EL TAMBO "," MARISCAL CASTILLA ",null," HUERTAS ",null,null,null," YAULI ",null," SIMBAL ",null,null,null,null," USQUIL ",null," PIAS ",null,null,null,null," OYOTUN ",null," SALAS "," COMAS ",null,null,null," NUEVO IMPERIAL "," SANTA CRUZ DE ANDAMARCA "," LAHUAYTAMBO "," SANTA MARIA ",null," COCHAS "," TORRES CAUSANA ",null,null,null," JENARO HERRERA ",null,null,null,null,null,null," UBINAS ",null," TICLACAYAN ",null,null,null," SUYO "," BUENOS AIRES ",null,null,null,null,null," PAUCARCOLLA "," SAMAN "," USICAYOS ",null,null,null," VILAVILA ",null,null,null,null," SAN PEDRO DE PUTINA PUNCO ",null,null,null,null,null," TABALOSOS ",null," TRES UNIDOS ",null," MORALES ",null," CORONEL GREGORIO ALBARRACIN LANCHIPA "]
[" LEVANTO ",null," VALERA ",null," MARIA "," TOTORA ",null," PIRA ",null,null,null," LA PRIMAVERA "," YUNGAR ",null,null,null," PONTO ",null,null,null,null," TAUCA ",null,null,null,null,null,null," POMACOCHA ",null," SAN JUAN DE CHACÑA ",null,null," TURPAY "," MOLLEBAYA ",null," LOMAS "," TIPAN "," LLUTA ",null,null," TORO "," SANTIAGO DE PISCHA ",null,null,null,null," LUCANAS ",null,null," SORAS "," SARHUA ",null," NAMORA ",null," UTCO "," LLAMA ",null," SANTA CRUZ ",null," SAN JOSE DEL ALTO ",null,null," SAN SILVESTRE DE COCHAN ",null," YAUYUCAN ",null,null,null,null,null,null,null,null,null,null,null,null," OROPESA ",null," MARISCAL CACERES ",null," SANTO TOMAS DE PATA "," SANTA ANA ",null," SAN FRANCISCO DE SANGAYAICO "," QUISHUAR "," PILLCO MARCA ",null,null,null," TANTAMAYO ",null,null,null,null,null,null," SANTIAGO "," TAMBO DE MORA ",null,null,null," HUACRAPUQUIO "," MATAHUASI ",null," JANJAILLO ",null,null,null,null,null," VICTOR LARCO HERRERA ",null,null,null,null,null,null," SANTIAGO DE CHALLAS ",null,null,null,null," PICSI ",null," SAN JOSE "," EL AGUSTINO ",null,null,null," PACARAN "," SUMBILCA "," LANGA "," SAYAN ",null," COLONIA "," BELEN ",null,null,null," YAQUERANA ",null,null,null,null,null,null," YUNGA ",null," TINYAHUARCO ",null,null,null,null," CHALACO ",null,null,null,null,null," PICHACANI "," SAN ANTON ",null,null,null,null,null,null,null,null,null,null,null,null,null,null,null," ZAPATERO ",null,null,null," PAPAPLAYA "]
[" MAGDALENA ",null," YAMBRASBAMBA ",null," OCALLI "," VISTA ALEGRE ",null," TARICA ",null,null,null," MANGAS ",null,null,null,null," RAHUAPAMPA ",null,null,null,null,null,null,null,null,null,null,null," SAN ANTONIO DE CACHI ",null," SAÑAYCA ",null,null," VILCABAMBA "," PAUCARPATA ",null," QUICACHA "," UÑON "," MACA ",null,null,null," SOCOS ",null,null,null,null," OCAÑA ",null,null,null," VILCANCHOS ",null," SAN JUAN ",null," LA LIBERTAD DE PALLAN "," MIRACOSTA ",null," SANTO DOMINGO DE LA CAPILLA ",null," SANTA ROSA ",null,null," TONGOD ",null,null,null,null,null,null,null,null,null,null,null,null,null,null," QUIQUIJANA ",null," MOYA ",null," SECCLLA "," TANTARA ",null," SAN ISIDRO "," SALCABAMBA "," SAN PABLO DE PILLAO",null,null,null,null,null,null,null,null,null,null," SUBTANJALLA ",null,null,null,null," HUALHUAS "," MITO ",null," JULCAN ",null,null,null,null,null,null,null,null,null,null,null,null," TAURIJA ",null,null,null,null," PIMENTEL ",null," TUCUME "," INDEPENDENCIA ",null,null,null," QUILMANA "," VEINTISIETE DE NOVIEMBRE "," LARAOS "," VEGUETA ",null," HONGOS "," SAN JUAN BAUTISTA ",null,null,null,null,null,null,null,null,null,null,null,null," VICCO ",null,null,null,null," LA MATANZA ",null,null,null,null,null," PLATERIA "," SAN JOSE ",null,null,null,null,null,null,null,null,null,null,null,null,null,null,null,null,null,null,null," SAN ANTONIO "]
[" MARISCAL CASTILLA ",null,null,null," OCUMAL ",null,null,null,null,null,null," PACLLON ",null,null,null,null," RAPAYAN ",null,null,null,null,null,null,null,null,null,null,null," SAN JERONIMO ",null," SORAYA ",null,null," VIRUNDO "," POCSI ",null," YAUCA "," URACA "," MADRIGAL ",null,null,null," TAMBILLO ",null,null,null,null," OTOCA ",null,null,null,null,null,null,null,null," PACCHA ",null," SANTO TOMAS ",null,null,null,null," UNION AGUA BLANCA ",null,null,null,null,null,null,null,null,null,null,null,null,null,null,null,null," NUEVO OCCORO ",null,null," TICRAPO ",null," SANTIAGO DE CHOCORVOS "," SALCAHUASI ",null,null,null,null,null,null,null,null,null,null,null," TATE ",null,null,null,null," HUANCAN "," NUEVE DE JULIO ",null," LEONOR ORDOÑEZ ",null,null,null,null,null,null,null,null,null,null,null,null," URPAY ",null,null,null,null," REQUE ",null,null," JESUS MARIA",null,null,null," SAN ANTONIO ",null," MARIATANA ",null,null," HUAMPARA "," TENIENTE MANUEL CLAVERO ",null,null,null,null,null,null,null,null,null,null,null,null," YANACANCHA ",null,null,null,null,null,null,null,null,null,null," SAN ANTONIO "," SAN JUAN DE SALINAS ",null,null,null,null,null,null,null,null,null,null,null,null,null,null,null,null,null,null,null," SAUCE "]
[" MOLINOPAMPA ",null,null,null," PISUQUIA ",null,null,null,null,null,null," SAN MIGUEL DE CORPANQUI ",null,null,null,null," SAN MARCOS ",null,null,null,null,null,null,null,null,null,null,null," SAN MIGUEL DE CHACCRAMPA ",null," TAPAIRIHUA ",null,null," CURASCO "," POLOBAYA ",null,null," VIRACO "," SAN ANTONIO DE CHUCA ",null,null,null," VINCHOS ",null,null,null,null," SAISA ",null,null,null,null,null,null,null,null," PION ",null," SOCOTA ",null,null,null,null,null,null,null,null,null,null,null,null,null,null,null,null,null,null,null,null,null," PALCA ",null,null,null,null," SANTIAGO DE QUIRAHUARA "," SAN MARCOS DE ROCCHAC ",null,null,null,null,null,null,null,null,null,null,null," YAUCA DEL ROSARIO ",null,null,null,null," HUASICANCHA "," ORCOTUNA ",null," LLOCLLAPAMPA ",null,null,null,null,null,null,null,null,null,null,null,null,null,null,null,null,null," SANTA ROSA ",null,null," LA MOLINA ",null,null,null," SAN LUIS ",null," RICARDO PALMA ",null,null," HUANCAYA ",null,null,null,null,null,null,null,null,null,null,null,null,null,null,null,null,null,null,null,null,null,null,null,null," TIQUILLACA "," SANTIAGO DE PUPUJA ",null,null,null,null,null,null,null,null,null,null,null,null,null,null,null,null,null,null,null," SHAPAJA "]
[" MONTEVIDEO ",null,null,null," PROVIDENCIA ",null,null,null,null,null,null," TICLLOS ",null,null,null,null," SAN PEDRO DE CHANA ",null,null,null,null,null,null,null,null,null,null,null," SANTA MARIA DE CHICMO ",null," TINTAY ",null,null,null," QUEQUEÑA ",null,null,null," SIBAYO ",null,null,null," JESUS NAZARENO ",null,null,null,null," SAN CRISTOBAL ",null,null,null,null,null,null,null,null," QUEROCOTO ",null," TORIBIO CASANOVA ",null,null,null,null,null,null,null,null,null,null,null,null,null,null,null,null,null,null,null,null,null," PILCHACA ",null,null,null,null," SANTO DOMINGO DE CAPILLAS "," SURCUBAMBA ",null,null,null,null,null,null,null,null,null,null,null,null,null,null,null,null," HUAYUCACHI "," SAN JOSE DE QUERO ",null," MARCO ",null,null,null,null,null,null,null,null,null,null,null,null,null,null,null,null,null," SAÑA ",null,null," LA VICTORIA ",null,null,null," SANTA CRUZ DE FLORES ",null," SAN ANDRES DE TUPICOCHA ",null,null," HUANGASCAR ",null,null,null,null,null,null,null,null,null,null,null,null,null,null,null,null,null,null,null,null,null,null,null,null," VILQUE "," TIRAPATA "]
[" OLLEROS ",null,null,null," SAN CRISTOBAL ",null,null,null,null,null,null,null,null,null,null,null," UCO ",null,null,null,null,null,null,null,null,null,null,null," TALAVERA ",null," TORAYA ",null,null,null," SABANDIA ",null,null,null," TAPAY ",null,null,null,null,null,null,null,null," SAN JUAN ",null,null,null,null,null,null,null,null," SAN JUAN DE LICUPIS ",null,null,null,null,null,null,null,null,null,null,null,null,null,null,null,null,null,null,null,null,null,null,null," VILCA ",null,null,null,null," TAMBO "," TINTAY PUNCU ",null,null,null,null,null,null,null,null,null,null,null,null,null,null,null,null," INGENIO "," SANTA ROSA DE OCOPA ",null," MASMA ",null,null,null,null,null,null,null,null,null,null,null,null,null,null,null,null,null," CAYALTI ",null,null," LINCE ",null,null,null," ZUÑIGA ",null," SAN ANTONIO ",null,null," HUANTAN "]
[" QUINJALCA ",null,null,null," SAN FRANCISCO DEL YESO ",null,null,null,null,null,null,null,null,null,null,null,null,null,null,null,null,null,null,null,null,null,null,null," TUMAY HUARACA ",null," YANACA ",null,null,null," SACHACA ",null,null,null," TISCO ",null,null,null,null,null,null,null,null," SAN PEDRO ",null,null,null,null,null,null,null,null," TACABAMBA ",null,null,null,null,null,null,null,null,null,null,null,null,null,null,null,null,null,null,null,null,null,null,null," YAULI ",null,null,null,null,null,null,null,null,null,null,null,null,null,null,null,null,null,null,null,null,null,null," PARIAHUANCA ",null,null," MASMA CHICCHE ",null,null,null,null,null,null,null,null,null,null,null,null,null,null,null,null,null," PATAPO ",null,null," LOS OLIVOS ",null,null,null,null,null," SAN BARTOLOME ",null,null," HUAÑEC "]
[" SAN FRANCISCO DE DAGUAS ",null,null,null," SAN JERONIMO ",null,null,null,null,null,null,null,null,null,null,null,null,null,null,null,null,null,null,null,null,null,null,null," TURPO ",null,null,null,null,null," SAN JUAN DE SIGUAS ",null,null,null," TUTI ",null,null,null,null,null,null,null,null," SAN PEDRO DE PALCO ",null,null,null,null,null,null,null,null," TOCMOCHE ",null,null,null,null,null,null,null,null,null,null,null,null,null,null,null,null,null,null,null,null,null,null,null," ASCENSION ",null,null,null,null,null,null,null,null,null,null,null,null,null,null,null,null,null,null,null,null,null,null," PILCOMAYO ",null,null," MOLINOS ",null,null,null,null,null,null,null,null,null,null,null,null,null,null,null,null,null," POMALCA ",null,null," LURIGANCHO ",null,null,null,null,null," SAN DAMIAN ",null,null," LARAOS "]
[" SAN ISIDRO DE MAINO ",null,null,null," SAN JUAN DE LOPECANCHA ",null,null,null,null,null,null,null,null,null,null,null,null,null,null,null,null,null,null,null,null,null,null,null," KAQUIABAMBA ",null,null,null,null,null," SAN JUAN DE TARUCANI ",null,null,null," YANQUE ",null,null,null,null,null,null,null,null," SANCOS ",null,null,null,null,null,null,null,null," CHALAMARCA ",null,null,null,null,null,null,null,null,null,null,null,null,null,null,null,null,null,null,null,null,null,null,null," HUANDO ",null,null,null,null,null,null,null,null,null,null,null,null,null,null,null,null,null,null,null,null,null,null," PUCARA ",null,null," MONOBAMBA ",null,null,null,null,null,null,null,null,null,null,null,null,null,null,null,null,null," PUCALA ",null,null," LURIN ",null,null,null,null,null," SAN JUAN DE IRIS ",null,null," LINCHA "]
[" SOLOCO ",null,null,null," SANTA CATALINA ",null,null,null,null,null,null,null,null,null,null,null,null,null,null,null,null,null,null,null,null,null,null,null,null,null,null,null,null,null," SANTA ISABEL DE SIGUAS ",null,null,null," MAJES ",null,null,null,null,null,null,null,null," SANTA ANA DE HUAYCAHUACHO ",null,null,null,null,null,null,null,null,null,null,null,null,null,null,null,null,null,null,null,null,null,null,null,null,null,null,null,null,null,null,null,null,null,null,null,null,null,null,null,null,null,null,null,null,null,null,null,null,null,null,null,null,null,null,null," QUICHUAY ",null,null," MUQUI ",null,null,null,null,null,null,null,null,null,null,null,null,null,null,null,null,null," TUMAN ",null,null," MAGDALENA DEL MAR ",null,null,null,null,null," SAN JUAN DE TANTARANCHE ",null,null," MADEAN "]
[" SONCHE ",null,null,null," SANTO TOMAS ",null,null,null,null,null,null,null,null,null,null,null,null,null,null,null,null,null,null,null,null,null,null,null,null,null,null,null,null,null," SANTA RITA DE SIGUAS ",null,null,null,null,null,null,null,null,null,null,null,null," SANTA LUCIA ",null,null,null,null,null,null,null,null,null,null,null,null,null,null,null,null,null,null,null,null,null,null,null,null,null,null,null,null,null,null,null,null,null,null,null,null,null,null,null,null,null,null,null,null,null,null,null,null,null,null,null,null,null,null,null," QUILCAS ",null,null," MUQUIYAUYO ",null,null,null,null,null,null,null,null,null,null,null,null,null,null,null,null,null,null,null,null," PUEBLO LIBRE ",null,null,null,null,null," SAN LORENZO DE QUINTI ",null,null," MIRAFLORES "]
[null,null,null,null," TINGO ",null,null,null,null,null,null,null,null,null,null,null,null,null,null,null,null,null,null,null,null,null,null,null,null,null,null,null,null,null," SOCABAYA ",null,null,null,null,null,null,null,null,null,null,null,null,null,null,null,null,null,null,null,null,null,null,null,null,null,null,null,null,null,null,null,null,null,null,null,null,null,null,null,null,null,null,null,null,null,null,null,null,null,null,null,null,null,null,null,null,null,null,null,null,null,null,null,null,null,null,null,null," SAN AGUSTIN ",null,null," PACA ",null,null,null,null,null,null,null,null,null,null,null,null,null,null,null,null,null,null,null,null," MIRAFLORES ",null,null,null,null,null," SAN MATEO ",null,null," OMAS "]
[null,null,null,null," TRITA ",null,null,null,null,null,null,null,null,null,null,null,null,null,null,null,null,null,null,null,null,null,null,null,null,null,null,null,null,null," TIABAYA ",null,null,null,null,null,null,null,null,null,null,null,null,null,null,null,null,null,null,null,null,null,null,null,null,null,null,null,null,null,null,null,null,null,null,null,null,null,null,null,null,null,null,null,null,null,null,null,null,null,null,null,null,null,null,null,null,null,null,null,null,null,null,null,null,null,null,null,null," SAN JERONIMO DE TUNAN ",null,null," PACCHA ",null,null,null,null,null,null,null,null,null,null,null,null,null,null,null,null,null,null,null,null," PACHACAMAC ",null,null,null,null,null," SAN MATEO DE OTAO ",null,null," PUTINZA "]
[null,null,null,null,null,null,null,null,null,null,null,null,null,null,null,null,null,null,null,null,null,null,null,null,null,null,null,null,null,null,null,null,null,null," UCHUMAYO ",null,null,null,null,null,null,null,null,null,null,null,null,null,null,null,null,null,null,null,null,null,null,null,null,null,null,null,null,null,null,null,null,null,null,null,null,null,null,null,null,null,null,null,null,null,null,null,null,null,null,null,null,null,null,null,null,null,null,null,null,null,null,null,null,null,null,null,null," SAÑO ",null,null," PANCAN ",null,null,null,null,null,null,null,null,null,null,null,null,null,null,null,null,null,null,null,null," PUCUSANA ",null,null,null,null,null," SAN PEDRO DE CASTA ",null,null," QUINCHES "]
[null,null,null,null,null,null,null,null,null,null,null,null,null,null,null,null,null,null,null,null,null,null,null,null,null,null,null,null,null,null,null,null,null,null," VITOR ",null,null,null,null,null,null,null,null,null,null,null,null,null,null,null,null,null,null,null,null,null,null,null,null,null,null,null,null,null,null,null,null,null,null,null,null,null,null,null,null,null,null,null,null,null,null,null,null,null,null,null,null,null,null,null,null,null,null,null,null,null,null,null,null,null,null,null,null," SAPALLANGA ",null,null," PARCO ",null,null,null,null,null,null,null,null,null,null,null,null,null,null,null,null,null,null,null,null," PUENTE PIEDRA ",null,null,null,null,null," SAN PEDRO DE HUANCAYRE ",null,null," QUINOCAY "]
[null,null,null,null,null,null,null,null,null,null,null,null,null,null,null,null,null,null,null,null,null,null,null,null,null,null,null,null,null,null,null,null,null,null," YANAHUARA ",null,null,null,null,null,null,null,null,null,null,null,null,null,null,null,null,null,null,null,null,null,null,null,null,null,null,null,null,null,null,null,null,null,null,null,null,null,null,null,null,null,null,null,null,null,null,null,null,null,null,null,null,null,null,null,null,null,null,null,null,null,null,null,null,null,null,null,null," SICAYA ",null,null," POMACANCHA ",null,null,null,null,null,null,null,null,null,null,null,null,null,null,null,null,null,null,null,null," PUNTA HERMOSA ",null,null,null,null,null," SANGALLAYA ",null,null," SAN JOAQUIN "]
[null,null,null,null,null,null,null,null,null,null,null,null,null,null,null,null,null,null,null,null,null,null,null,null,null,null,null,null,null,null,null,null,null,null," YARABAMBA ",null,null,null,null,null,null,null,null,null,null,null,null,null,null,null,null,null,null,null,null,null,null,null,null,null,null,null,null,null,null,null,null,null,null,null,null,null,null,null,null,null,null,null,null,null,null,null,null,null,null,null,null,null,null,null,null,null,null,null,null,null,null,null,null,null,null,null,null," SANTO DOMINGO DE ACOBAMBA ",null,null," RICRAN ",null,null,null,null,null,null,null,null,null,null,null,null,null,null,null,null,null,null,null,null," PUNTA NEGRA ",null,null,null,null,null," SANTA CRUZ DE COCACHACRA ",null,null," SAN PEDRO DE PILAS "]
[null,null,null,null,null,null,null,null,null,null,null,null,null,null,null,null,null,null,null,null,null,null,null,null,null,null,null,null,null,null,null,null,null,null," YURA ",null,null,null,null,null,null,null,null,null,null,null,null,null,null,null,null,null,null,null,null,null,null,null,null,null,null,null,null,null,null,null,null,null,null,null,null,null,null,null,null,null,null,null,null,null,null,null,null,null,null,null,null,null,null,null,null,null,null,null,null,null,null,null,null,null,null,null,null,null,null,null," SAN LORENZO ",null,null,null,null,null,null,null,null,null,null,null,null,null,null,null,null,null,null,null,null," RIMAC ",null,null,null,null,null," SANTA EULALIA ",null,null," TANTA "]
[null,null,null,null,null,null,null,null,null,null,null,null,null,null,null,null,null,null,null,null,null,null,null,null,null,null,null,null,null,null,null,null,null,null," JOSE LUIS BUSTAMANTE Y RIVERO ",null,null,null,null,null,null,null,null,null,null,null,null,null,null,null,null,null,null,null,null,null,null,null,null,null,null,null,null,null,null,null,null,null,null,null,null,null,null,null,null,null,null,null,null,null,null,null,null,null,null,null,null,null,null,null,null,null,null,null,null,null,null,null,null,null,null,null,null,null,null,null," SAN PEDRO DE CHUNAN ",null,null,null,null,null,null,null,null,null,null,null,null,null,null,null,null,null,null,null,null," SAN BARTOLO ",null,null,null,null,null," SANTIAGO DE ANCHUCAYA ",null,null," TAURIPAMPA "]
[null,null,null,null,null,null,null,null,null,null,null,null,null,null,null,null,null,null,null,null,null,null,null,null,null,null,null,null,null,null,null,null,null,null,null,null,null,null,null,null,null,null,null,null,null,null,null,null,null,null,null,null,null,null,null,null,null,null,null,null,null,null,null,null,null,null,null,null,null,null,null,null,null,null,null,null,null,null,null,null,null,null,null,null,null,null,null,null,null,null,null,null,null,null,null,null,null,null,null,null,null,null,null,null,null,null," SAUSA ",null,null,null,null,null,null,null,null,null,null,null,null,null,null,null,null,null,null,null,null," SAN BORJA ",null,null,null,null,null," SANTIAGO DE TUNA ",null,null," TOMAS "]
[null,null,null,null,null,null,null,null,null,null,null,null,null,null,null,null,null,null,null,null,null,null,null,null,null,null,null,null,null,null,null,null,null,null,null,null,null,null,null,null,null,null,null,null,null,null,null,null,null,null,null,null,null,null,null,null,null,null,null,null,null,null,null,null,null,null,null,null,null,null,null,null,null,null,null,null,null,null,null,null,null,null,null,null,null,null,null,null,null,null,null,null,null,null,null,null,null,null,null,null,null,null,null,null,null,null," SINCOS ",null,null,null,null,null,null,null,null,null,null,null,null,null,null,null,null,null,null,null,null," SAN ISIDRO ",null,null,null,null,null," SANTO DOMINGO DE LOS OLLEROS ",null,null," TUPE "]
[null,null,null,null,null,null,null,null,null,null,null,null,null,null,null,null,null,null,null,null,null,null,null,null,null,null,null,null,null,null,null,null,null,null,null,null,null,null,null,null,null,null,null,null,null,null,null,null,null,null,null,null,null,null,null,null,null,null,null,null,null,null,null,null,null,null,null,null,null,null,null,null,null,null,null,null,null,null,null,null,null,null,null,null,null,null,null,null,null,null,null,null,null,null,null,null,null,null,null,null,null,null,null,null,null,null," TUNAN MARCA ",null,null,null,null,null,null,null,null,null,null,null,null,null,null,null,null,null,null,null,null," SAN JUAN DE LURIGANCHO ",null,null,null,null,null," SURCO ",null,null," VIÑAC "]
[null,null,null,null,null,null,null,null,null,null,null,null,null,null,null,null,null,null,null,null,null,null,null,null,null,null,null,null,null,null,null,null,null,null,null,null,null,null,null,null,null,null,null,null,null,null,null,null,null,null,null,null,null,null,null,null,null,null,null,null,null,null,null,null,null,null,null,null,null,null,null,null,null,null,null,null,null,null,null,null,null,null,null,null,null,null,null,null,null,null,null,null,null,null,null,null,null,null,null,null,null,null,null,null,null,null," YAULI ",null,null,null,null,null,null,null,null,null,null,null,null,null,null,null,null,null,null,null,null," SAN JUAN DE MIRAFLORES ",null,null,null,null,null,null,null,null," VITIS "]
[null,null,null,null,null,null,null,null,null,null,null,null,null,null,null,null,null,null,null,null,null,null,null,null,null,null,null,null,null,null,null,null,null,null,null,null,null,null,null,null,null,null,null,null,null,null,null,null,null,null,null,null,null,null,null,null,null,null,null,null,null,null,null,null,null,null,null,null,null,null,null,null,null,null,null,null,null,null,null,null,null,null,null,null,null,null,null,null,null,null,null,null,null,null,null,null,null,null,null,null,null,null,null,null,null,null," YAUYOS ",null,null,null,null,null,null,null,null,null,null,null,null,null,null,null,null,null,null,null,null," SAN LUIS "]
[null,null,null,null,null,null,null,null,null,null,null,null,null,null,null,null,null,null,null,null,null,null,null,null,null,null,null,null,null,null,null,null,null,null,null,null,null,null,null,null,null,null,null,null,null,null,null,null,null,null,null,null,null,null,null,null,null,null,null,null,null,null,null,null,null,null,null,null,null,null,null,null,null,null,null,null,null,null,null,null,null,null,null,null,null,null,null,null,null,null,null,null,null,null,null,null,null,null,null,null,null,null,null,null,null,null,null,null,null,null,null,null,null,null,null,null,null,null,null,null,null,null,null,null,null,null,null," SAN MARTIN DE PORRES "]
[null,null,null,null,null,null,null,null,null,null,null,null,null,null,null,null,null,null,null,null,null,null,null,null,null,null,null,null,null,null,null,null,null,null,null,null,null,null,null,null,null,null,null,null,null,null,null,null,null,null,null,null,null,null,null,null,null,null,null,null,null,null,null,null,null,null,null,null,null,null,null,null,null,null,null,null,null,null,null,null,null,null,null,null,null,null,null,null,null,null,null,null,null,null,null,null,null,null,null,null,null,null,null,null,null,null,null,null,null,null,null,null,null,null,null,null,null,null,null,null,null,null,null,null,null,null,null," SAN MIGUEL "]
[null,null,null,null,null,null,null,null,null,null,null,null,null,null,null,null,null,null,null,null,null,null,null,null,null,null,null,null,null,null,null,null,null,null,null,null,null,null,null,null,null,null,null,null,null,null,null,null,null,null,null,null,null,null,null,null,null,null,null,null,null,null,null,null,null,null,null,null,null,null,null,null,null,null,null,null,null,null,null,null,null,null,null,null,null,null,null,null,null,null,null,null,null,null,null,null,null,null,null,null,null,null,null,null,null,null,null,null,null,null,null,null,null,null,null,null,null,null,null,null,null,null,null,null,null,null,null," SANTA ANITA "]
[null,null,null,null,null,null,null,null,null,null,null,null,null,null,null,null,null,null,null,null,null,null,null,null,null,null,null,null,null,null,null,null,null,null,null,null,null,null,null,null,null,null,null,null,null,null,null,null,null,null,null,null,null,null,null,null,null,null,null,null,null,null,null,null,null,null,null,null,null,null,null,null,null,null,null,null,null,null,null,null,null,null,null,null,null,null,null,null,null,null,null,null,null,null,null,null,null,null,null,null,null,null,null,null,null,null,null,null,null,null,null,null,null,null,null,null,null,null,null,null,null,null,null,null,null,null,null," SANTA MARIA DEL MAR "]
[null,null,null,null,null,null,null,null,null,null,null,null,null,null,null,null,null,null,null,null,null,null,null,null,null,null,null,null,null,null,null,null,null,null,null,null,null,null,null,null,null,null,null,null,null,null,null,null,null,null,null,null,null,null,null,null,null,null,null,null,null,null,null,null,null,null,null,null,null,null,null,null,null,null,null,null,null,null,null,null,null,null,null,null,null,null,null,null,null,null,null,null,null,null,null,null,null,null,null,null,null,null,null,null,null,null,null,null,null,null,null,null,null,null,null,null,null,null,null,null,null,null,null,null,null,null,null,"SANTA ROSA "]
[null,null,null,null,null,null,null,null,null,null,null,null,null,null,null,null,null,null,null,null,null,null,null,null,null,null,null,null,null,null,null,null,null,null,null,null,null,null,null,null,null,null,null,null,null,null,null,null,null,null,null,null,null,null,null,null,null,null,null,null,null,null,null,null,null,null,null,null,null,null,null,null,null,null,null,null,null,null,null,null,null,null,null,null,null,null,null,null,null,null,null,null,null,null,null,null,null,null,null,null,null,null,null,null,null,null,null,null,null,null,null,null,null,null,null,null,null,null,null,null,null,null,null,null,null,null,null," SANTIAGO DE SURCO "]
[null,null,null,null,null,null,null,null,null,null,null,null,null,null,null,null,null,null,null,null,null,null,null,null,null,null,null,null,null,null,null,null,null,null,null,null,null,null,null,null,null,null,null,null,null,null,null,null,null,null,null,null,null,null,null,null,null,null,null,null,null,null,null,null,null,null,null,null,null,null,null,null,null,null,null,null,null,null,null,null,null,null,null,null,null,null,null,null,null,null,null,null,null,null,null,null,null,null,null,null,null,null,null,null,null,null,null,null,null,null,null,null,null,null,null,null,null,null,null,null,null,null,null,null,null,null,null," SURQUILLO "]
[null,null,null,null,null,null,null,null,null,null,null,null,null,null,null,null,null,null,null,null,null,null,null,null,null,null,null,null,null,null,null,null,null,null,null,null,null,null,null,null,null,null,null,null,null,null,null,null,null,null,null,null,null,null,null,null,null,null,null,null,null,null,null,null,null,null,null,null,null,null,null,null,null,null,null,null,null,null,null,null,null,null,null,null,null,null,null,null,null,null,null,null,null,null,null,null,null,null,null,null,null,null,null,null,null,null,null,null,null,null,null,null,null,null,null,null,null,null,null,null,null,null,null,null,null,null,null," VILLA EL SALVADOR "]
[null,null,null,null,null,null,null,null,null,null,null,null,null,null,null,null,null,null,null,null,null,null,null,null,null,null,null,null,null,null,null,null,null,null,null,null,null,null,null,null,null,null,null,null,null,null,null,null,null,null,null,null,null,null,null,null,null,null,null,null,null,null,null,null,null,null,null,null,null,null,null,null,null,null,null,null,null,null,null,null,null,null,null,null,null,null,null,null,null,null,null,null,null,null,null,null,null,null,null,null,null,null,null,null,null,null,null,null,null,null,null,null,null,null,null,null,null,null,null,null,null,null,null,null,null,null,null," VILLA MARIA DEL TRIUNFO "]